Workbook

Sheet المستحدثة (hidden)
A1: مديرية ماء صلاح الدين
A2: اعمال اعادة تاهيل مشروع ماء بيجي الموحد (3000 م3/سا)
A3: ت | B3: التفاصيل | C3: الوحدة | D3: الكمية | E3: السعر | F3: المبلغ
B4: اولا : هيكل السحب
A5: 1 | B5: تجهيز المواد والمعدات اللازمة لتأهيل هيكل السحب ويشمل العمل ما يلي • قلع كافة الأجزاء الحديدية للهيكل المتضررة واستبدالها بأجزاء جديدة وحسب القياسات الموجودة مع اطالة هيكل السحب بمسافة 15 متر داخل النهر بواسطة دق حديد الشيلمان (نوع H) بيم في النهر مع لحيم الرباطات والجسور في ما بينها وربطه بالهيكل الموجود وباستخدام حديد شيلمان(300×225) ملم ..وتوجيهات المهندس المشرف. | C5: جملة | D5: جملة | E5: 70000000 | F5: 70000000
A6: 2 | B6: تجهيز المواد والقيام بعمل محجر حديدي من أنابيب مغلونة (40)ملم ارتفاع (1.5) م على الجانبين. مع كل ما يتطلبة العمل وحسب توجيهات المهندس المشرف. | C6: جملة | D6: جملة | E6: 3500000 | F6: 3500000
A7: 4 | B7: عمل جسر حديدي للكرين المتحرك وبثلاث اتجاهات وبطول 80 متر من شيلمان (300×225) ملم (نوع H) بيم. مع كل ما يتطلبة العمل . | C7: جملة | D7: جملة | E7: 10000000 | F7: 10000000
A8: 5 | B8: • عمل ممشى من حديد (جكر بليت ) سمك 6 ملم وبعرض 1.5 متر على طول الهيكل مع المماشي الجانبية للهيكل . مع كل ما يتطلبة العمل وتوجيهات المهندس المشرف | C8: جملة | D8: جملة | E8: 6500000 | F8: 6500000
A9: 6 | B9: • تجهيز المواد والقيام بطلاء هيكل السحب بالكامل بمادة مانع الصدا ثلاث قوط . مع طلائه بطبقة رابعة بطلاء زيتي وحسب توجيهات المهندس المشرف | C9: جملة | D9: جملة | E9: 3000000 | F9: 3000000
A10: 7 | B10: تجهيز مواد ومعدات والقيام بعمل تكسية حجرية حول هيكل السحب بأستخدام الحجر الناجح في الفحص المختبري ويشمل السعر عمل فلتر من الحصى الناعم وتثبيت انابيب تصريف مع كل مايتطلبه العمل . ويشمل العمل عمل سن صخري داخل النهر وبطول 20 متر وحسب المواصفات الفنية وتوجيهات المهندس المشرف | C10: م3 | D10: 300 | E10: 500000 | F10: =E10*D10 -> 150000000
A11: 8 | B11: تجهيز ونصب مصابيح تحذير كهربائية عدد/ 3 . مع بلاجكتور 400 واط زئبقي عدد /4 مع تسليك الاسلاك الكهربائية وعمل بورد كهربائي خاص بها مع كل ما يتطلبة العمل والتشغيل . | C11: جملة | D11: جملة | E11: 1000000 | F11: 1000000
A12: 9 | B12: • عمل مصدات مائية لهيكل السحب تبعد عنه مسافة (3)م من كل الجوانب .ويعتمد ارتفاع المصدات على تحديد اعلى منسوب لنهر دجلة مقارنة بهيكل السحب الجديد ويكون بارز عن مستوى النهر بارتفاع (30)سم. | C12: جملة | D12: جملة | E12: 15000000 | F12: 15000000
A13: 10 | B13: • عمل منظومة غسل عكسي .لغسل وتنظيف الممصات العائدة لمحطة السحب. | C13: جملة | D13: جملة | E13: 7500000 | F13: 7500000
B14: المجموع / | F14: =SUM(F5:F13) -> 266500000
B15: ثانيا : محطة السحب الواطئ | F15: =SUM(F5:F13) -> 266500000
A16: =A15+1 -> 1 | B16: تجهيز المواد والالات اللازمة لتبديل انابيب دكتايل دبل فلانج التي تربط مضخات السحب الواطئ مع ممصات السحب مع العكوس وغيرها مع كل ما يتطلبه العمل وحسب ما ياتي :- أ – تجهيز انبوب دكتايل (500) ملم مع كافة الملحقات (450) م.ط ب - تجهيز انبوب دكتايل (300) ملم مع كافة الملحقات (250)م.ط | C16: جملة | D16: جملة | E16: 136500000 | F16: 136500000
A17: 2 | B17: تجهيز وربط وفحص وتشغيل ممصات السحب وحسب الاقطار المدرجة في ادناه على ان تكون (ستانلس ستيل) غربية المنشا وجديدة 1- قطر (300) ملم عدد/3 2- قطر (500) ملم عدد/5 مع كل ما يتطلبه العمل من قطع ولحام مع منظومة الاملاء وحسب توجيهات المهندس المشرف | C17: جملة | D17: جملة | E17: 18000000 | F17: 18000000
A18: 3 | B18: تجهيز وربط ونصب وفحص مضخات السحب الواطئ (سبلت كيس) (600م3/سا ×20م) مع المحرك الكهربائي مع ستارتر جديد ويتظمن ( قاطع دورة وكونتاكتر واوفرلود وتايمر وكيج اضوية ومصابيح واسلاك وكيبلات )وتكون لوحات السيطرة الرئيسية ذات نمط تشغيل (سوفت ستار) مع تجهيز المحركات الكهربائية بحساسات حرارية (متحسس حراري) وميكانيكا يحتوي على قاطع دوره نوع (RCCD) مع تجهيز قابلو (يتم تحديد حجمه حسب الكيلوواطية للمضخة من المضخة الى الستارتر ومن الستارتر الى لوحة السيطرة الرئيسية مع كل ما يتطلبه العمل على ان تكون جميع التسليكات الداخلية للبورد الكهربائي بواسطة بازبارات نحاسية وحسب توجيهات المهندس المشرف مع تجهيز مواد احتياطية للمضخة تشم ( بولبرنات مع شفت مع بشارة مع اطواق ) وعلى ان تكون جميع المواد المجهزه غربية المنشا وجديدة | C18: عدد | D18: 3 | E18: 40000000 | F18: =E18*D18 -> 120000000
A19: 4 | B19: تجهيز وربط ونصب وفحص مضخات السحب الواطئ (سبلت كيس) (900م3/سا ×20م) مع المحرك الكهربائي مع ستارتر جديد ويتظمن ( قاطع دورة وكونتاكتر واوفرلود وتايمر وكيج اضوية ومصابيح واسلاك وكيبلات )وتكون لوحات السيطرة الرئيسية ذات نمط تشغيل (سوفت ستار) مع تجهيز المحركات الكهربائية بحساسات حرارية (متحسس حراري) وميكانيكا يحتوي على قاطع دوره نوع (RCCD) مع تجهيز قابلو (يتم تحديد حجمه حسب الكيلوواطية للمضخة من المضخة الى الستارتر ومن الستارتر الى لوحة السيطرة الرئيسية مع كل ما يتطلبه العمل على ان تكون جميع التسليكات الداخلية للبورد الكهربائي بواسطة بازبارات نحاسية وحسب توجيهات المهندس المشرف مع تجهيز مواد احتياطية للمضخة تشم ( بولبرنات مع شفت مع بشارة مع اطواق ) وعلى ان تكون جميع المواد المجهزه غربية المنشا وجديدة | C19: عدد | D19: 5 | E19: 50000000 | F19: =E19*D19 -> 250000000
A20: 5 | B20: تجهيز المواد والمعدات اللازمة لتبديل مجموعة اقفال و صمامات محطة الرفع الواطئ مختلفة الاحجام والاقطار وحسب واقع الحال ووكل مجموعة تضم ( صمامات من جهة السحب والدفع وعدم رجوع لكل مضخة ) مع كل ما هو مطلوب لضمان الاداء الجيد وبدون تسريب ويجب صبغ كل الصمامات باستخدام طلاء اوكسيد احمر وبعده صبغ زيتي لماع ذو نوعية جيدة وحسب توجيهات المهندس المشرف | C20: مجوعة | D20: 8 | E20: 5000000 | F20: =E20*D20 -> 40000000
B21: المجموع / | F21: =SUM(F16:F20) -> 564500000
B22: ثانيا : هيكل السحب
B23: المجموع / | F23: =SUM(F16:F19) -> 524500000
B24: ثالثا :محطة الدفع
A25: 1 | B25: تجهيز وربط ونصب وفحص مضخات الدفع لجنوب بيجي (سبلت كيس) (840م3/سا ×80م) مع المحرك الكهربائي مع ستارتر جديد ويتظمن ( قاطع دورة وكونتاكتر واوفرلود وتايمر وكيج اضوية ومصابيح واسلاك وكيبلات ) وتكون لوحات السيطرة الرئيسية ذات نمط تشغيل (سوفت ستار) مع تجهيز المحركات الكهربائية بحساسات حرارية (متحسس حراري) وميكانيكا ويحتوي على قاطع دوره نوع (RCCD) مع تجهيز قابلو (يتم تحديد حجمه حسب الكيلوواطية للمضخة من المضخة الى الستارتر ومن الستارتر الى لوحة السيطرة الرئيسية على ان تكون جميع التسليكات الداخلية للبورد الكهربائي بواسطة بازبارات نحاسية مع كل ما يتطلبه العمل وحسب توجيهات المهندس المشرف مع تجهيز مواد احتياطية للمضخة تشمل ( بولبرنات مع شفت مع بشارة مع اطواق مع كوبلن ) وعلى ان تكون جميع المواد المجهزه غربية المنشا | C25: عدد | D25: 2 | E25: 70000000 | F25: =D25*E25 -> 140000000
A26: 2 | B26: تجهيز وربط ونصب وفحص مضخات الدفع لجنوب بيجي (سبلت كيس) (420م3/سا ×80م) ع المحرك الكهربائي مع ستارتر جديد ويتظمن ( قاطع دورة وكونتاكتر واوفرلود وتايمر وكيج اضوية ومصابيح واسلاك وكيبلات )وتكون لوحات السيطرة الرئيسية ذات نمط تشغيل (سوفت ستار) مع تجهيز المحركات الكهربائية بحساسات حرارية (متحسس حراري) وميكانيكا يحتوي على قاطع دوره نوع (RCCD) مع تجهيز قابلو (يتم تحديد حجمه حسب الكيلوواطية للمضخة من المضخة الى الستارتر ومن الستارتر الى لوحة السيطرة الرئيسية مع كل ما يتطلبه العمل على ان تكون جميع التسليكات الداخلية للبورد الكهربائي بواسطة بازبارات نحاسية وحسب توجيهات المهندس المشرف مع تجهيز مواد احتياطية للمضخة تشم ( بولبرنات مع شفت مع بشارة مع اطواق ) وعلى ان تكون جميع المواد المجهزه غربية المنشا وجديدة | C26: عدد | D26: 2 | E26: 40000000 | F26: =E26*D26 -> 80000000
A27: 3 | B27: تجهيز وربط ونصب وفحص مضخات الدفع لجنوب بيجي (سبلت كيس) (140م3/سا ×80م) مع المحرك الكهربائي مع ستارتر جديد ويتظمن ( قاطع دورة وكونتاكتر واوفرلود وتايمر وكيج اضوية ومصابيح واسلاك وكيبلات ) وتكون لوحات السيطرة الرئيسية ذات نمط تشغيل (سوفت ستار) مع تجهيز المحركات الكهربائية بحساسات حرارية (متحسس حراري) وميكانيكا مع تجهيز قابلو (يتم تحديد حجمه حسب الكيلوواطية للمضخة من المضخة الى الستارتر ومن الستارتر الى لوحة السيطرة الرئيسية على ان تكون جميع التسليكات الداخلية للبورد الكهربائي بواسطة بازبارات نحاسية مع كل ما يتطلبه العمل وحسب توجيهات المهندس المشرف مع تجهيز مواد احتياطية للمضخة تشمل ( بولبرنات مع شفت مع بشارة مع اطواق مع كوبلن ) وعلى ان تكون جميع المواد المجهزه غربية المنشا | C27: عدد | D27: 2 | E27: 25000000 | F27: 50000000
A28: 4 | B28: تجهيز وربط ونصب وفحص مضخات الدفع لشمال بيجي (سبلت كيس) (720م3/سا ×70م) مع المحرك الكهربائي مع ستارتر جديد ويتظمن ( قاطع دورة وكونتاكتر واوفرلود وتايمر وكيج اضوية ومصابيح واسلاك وكيبلات )وتكون لوحات السيطرة الرئيسية ذات نمط تشغيل (سوفت ستار) مع تجهيز المحركات الكهربائية بحساسات حرارية (متحسس حراري) وميكانيكا يحتوي على قاطع دوره نوع (RCCD) مع تجهيز قابلو (يتم تحديد حجمه حسب الكيلوواطية للمضخة من المضخة الى الستارتر ومن الستارتر الى لوحة السيطرة الرئيسية مع كل ما يتطلبه العمل على ان تكون جميع التسليكات الداخلية للبورد الكهربائي بواسطة بازبارات نحاسية وحسب توجيهات المهندس المشرف مع تجهيز مواد احتياطية للمضخة تشم ( بولبرنات مع شفت مع بشارة مع اطواق ) وعلى ان تكون جميع المواد المجهزه غربية المنشا وجديدة | C28: عدد | D28: 2 | E28: 65000000 | F28: 130000000
A29: 5 | B29: تجهيز وربط ونصب وفحص مضخات الدفع لشمال بيجي (سبلت كيس) (360م3/سا ×70م) ع المحرك الكهربائي مع ستارتر جديد ويتظمن ( قاطع دورة وكونتاكتر واوفرلود وتايمر وكيج اضوية ومصابيح واسلاك وكيبلات )وتكون لوحات السيطرة الرئيسية ذات نمط تشغيل (سوفت ستار) مع تجهيز المحركات الكهربائية بحساسات حرارية (متحسس حراري) وميكانيكا يحتوي على قاطع دوره نوع (RCCD) مع تجهيز قابلو (يتم تحديد حجمه حسب الكيلوواطية للمضخة من المضخة الى الستارتر ومن الستارتر الى لوحة السيطرة الرئيسية مع كل ما يتطلبه العمل على ان تكون جميع التسليكات الداخلية للبورد الكهربائي بواسطة بازبارات نحاسية وحسب توجيهات المهندس المشرف مع تجهيز مواد احتياطية للمضخة تشم ( بولبرنات مع شفت مع بشارة مع اطواق ) وعلى ان تكون جميع المواد المجهزه غربية المنشا وجديدة | C29: عدد | D29: 2 | E29: 30000000 | F29: 60000000
A30: 6 | B30: تجهيز وربط ونصب وفحص مضخات الدفع لشمال بيجي (سبلت كيس) (120م3/سا ×70م) مع المحرك الكهربائي مع ستارتر جديد ويتظمن ( قاطع دورة وكونتاكتر واوفرلود وتايمر وكيج اضوية ومصابيح واسلاك وكيبلات )وتكون لوحات السيطرة الرئيسية ذات نمط تشغيل (سوفت ستار) مع تجهيز المحركات الكهربائية بحساسات حرارية (متحسس حراري) وميكانيكا يحتوي على قاطع دوره نوع (RCCD) مع تجهيز قابلو (يتم تحديد حجمه حسب الكيلوواطية للمضخة من المضخة الى الستارتر ومن الستارتر الى لوحة السيطرة الرئيسية مع كل ما يتطلبه العمل على ان تكون جميع التسليكات الداخلية للبورد الكهربائي بواسطة بازبارات نحاسية وحسب توجيهات المهندس المشرف مع تجهيز مواد احتياطية للمضخة تشم ( بولبرنات مع شفت مع بشارة مع اطواق ) وعلى ان تكون جميع المواد المجهزه غربية المنشا وجديدة | C30: عدد | D30: 2 | E30: 20000000 | F30: 40000000
A31: 7 | B31: تجهيز وربط ونصب وفحص مضخات الدفع الصينية (سبلت كيس) (600م3/سا ×85م) مع المحرك الكهربائي مع ستارتر جديد ويتظمن ( قاطع دورة وكونتاكتر واوفرلود وتايمر وكيج اضوية ومصابيح واسلاك وكيبلات )وتكون لوحات السيطرة الرئيسية ذات نمط تشغيل (سوفت ستار) مع تجهيز المحركات الكهربائية بحساسات حرارية (متحسس حراري) وميكانيكا يحتوي على قاطع دوره نوع (RCCD) مع تجهيز قابلو (يتم تحديد حجمه حسب الكيلوواطية للمضخة من المضخة الى الستارتر ومن الستارتر الى لوحة السيطرة الرئيسية مع كل ما يتطلبه العمل على ان تكون جميع التسليكات الداخلية للبورد الكهربائي بواسطة بازبارات نحاسية وحسب توجيهات المهندس المشرف مع تجهيز مواد احتياطية للمضخة تشم ( بولبرنات مع شفت مع بشارة مع اطواق ) وعلى ان تكون جميع المواد المجهزه غربية المنشا وجديدة | C31: عدد | D31: 2 | E31: 60000000 | F31: 120000000
A32: 8 | B32: تجهيز وربط ونصب وفحص مضخات الدفع الحجاج (سبلت كيس) (200م3/سا ×110م) مع المحرك الكهربائي مع ستارتر جديد ويتظمن ( قاطع دورة وكونتاكتر واوفرلود وتايمر وكيج اضوية ومصابيح واسلاك وكيبلات )وتكون لوحات السيطرة الرئيسية ذات نمط تشغيل (سوفت ستار) مع تجهيز المحركات الكهربائية بحساسات حرارية (متحسس حراري) وميكانيكا يحتوي على قاطع دوره نوع (RCCD) مع تجهيز قابلو (يتم تحديد حجمه حسب الكيلوواطية للمضخة من المضخة الى الستارتر ومن الستارتر الى لوحة السيطرة الرئيسية مع كل ما يتطلبه العمل على ان تكون جميع التسليكات الداخلية للبورد الكهربائي بواسطة بازبارات نحاسية وحسب توجيهات المهندس المشرف مع تجهيز مواد احتياطية للمضخة تشم ( بولبرنات مع شفت مع بشارة مع اطواق ) وعلى ان تكون جميع المواد المجهزه غربية المنشا وجديدة | C32: عدد | D32: 2 | E32: 30000000 | F32: 60000000
A33: 9 | B33: تبديل خزانات مخفظ الصدمة للمشروع | C33: عدد | D33: 4 | E33: 5000000 | F33: 20000000
A34: 10 | B34: تجهيز المواد والمعدات اللازمة لتبديل مجموعة اقفال وصمامات محطة الدفع العالي وكل مجموعة تضم ( صمامات من جهة السحب والدفع للمضخة وعدم رجوع لكل مضخة ) مع كل ما هو مطلوب لضمان الاداء الجيد وبدون تسريب ويجب صبغ كل الصمامات باستخدام طلاء اوكسيد احمر وبعده صبغ زيتي لماع ذو نوعية جيدة | C34: مجوعة | D34: 16 | E34: 5000000 | F34: 80000000
B35: المجموع / | F35: =SUM(F25:F34) -> 780000000
B36: رابعا : الاعمال الكهربائية
B37: أ- محطة السحب الواطئ
A38: 1 | B38: القيام بتجهيز لوحة اسيطرة رئيسية وتشمل قاطع دورة رئيسي نوع (موتورايز) وحسب السعة التي تحددها لجنة الاشراف مع تجهيز وتركيب قواطع دورة ذو حمايات مدمجة لكل مضخة وقاطع خاص بالانارة والخدمات ويكون داخل بورد حديدي مصنوع ممن البليت سمك (2) ملم مع الصبغ الحراري مع تجهيز مقاييس (فولتية مع امبير مع هيرتز) لكل قاطع وتكون التوصيلات الداخلية بازبار ويحتوي على قاطع دوره نوع (RCCD) شاملا السعر مد وربط قابلو (يتم تحديد حجمه من قبل لجنة الاشراف يربط بين القاطع الرئيسي الى القواطع الفرعية وكذلك القابلو الرئيسي الذي يغذي قاطع الموتورايزويكون البورد الكهربائي مكيف (تبريد) سبلت كنتوري(4) طن مع كل ما يتطلبه العمل وحسب توجيهات المهندس المشرف . | C38: جملة | D38: جملة | E38: 25000000 | F38: 25000000
A39: 2 | B39: تجهيز ومد وربط قابلو كهربائي حجم (3×240+120) ملم2 (غربي او سعودي او اردني) من محطة السيطرة الرئيسية للمشروع الى محطة السحب مع كل ما يتطلبه العمل من اعمال حفريات ودفن واعادة الشوارع الى ما كانت عليه قبل العمل وحسب توجيهات المهندس المشرف | C39: م.ط | D39: 700 | E39: 150000 | F39: =E39*D39 -> 105000000
B40: ب - محطة الدفع
A41: 1 | B41: القيام بتجهيز لوحة اسيطرة رئيسية وتشمل قاطع دورة رئيسي نوع (موتورايز) وحسب السعة التي تحددها لجنة الاشراف مع تجهيز وتركيب قواطع دورة ذو حمايات مدمجة لكل مضخة وقاطع خاص بالانارة والخدمات ويكون داخل بورد حديدي مصنوع ممن البليت سمك (2) ملم مع الصبغ الحراري مع تجهيز مقاييس (فولتية مع امبير مع هيرتز) لكل قاطع وتكون التوصيلات الداخلية بازبار ويحتوي على قاطع دوره نوع (RCCD) شاملا السعر مد وربط قابلو (يتم تحديد حجمه من قبل لجنة الاشراف يربط بين القاطع الرئيسي الى القواطع الفرعية وكذلك القابلو الرئيسي الذي يغذي قاطع الموتورايز ويكون البورد الكهربائي مكيف (تبريد) سبلت كنتوري(4) طن مع كل ما يتطلبه العمل وحسب توجيهات المهندس المشرف . | C41: جملة | D41: جملة | E41: 35000000 | F41: 35000000
A42: 2 | B42: تجهيز ومد وربط قابلو كهربائي حجم (3×240+120) ملم2 (غربي او سعودي او اردني) من محطة السيطرة الرئيسية للمشروع الى محطة الدفع مع كل ما يتطلبه العمل من اعمال حفريات ودفن واعادة الشوارع الى ما كانت عليه قبل العمل وحسب توجيهات المهندس المشرف | C42: م.ط | D42: 400 | E42: 150000 | F42: =E42*D42 -> 60000000
B43: ج - محطة الفلاتر
A44: 1 | B44: القيام بتجهيز لوحة اسيطرة رئيسية وتشمل قاطع دورة رئيسي نوع (موتورايز) وحسب السعة التي تحددها لجنة الاشراف مع تجهيز وتركيب قواطع دورة ذو حمايات مدمجة لكل فلتر وقاطع خاص بالانارة والخدمات ويكون داخل بورد حديدي مصنوع ممن البليت سمك (2) ملم مع الصبغ الحراري مع تجهيز مقاييس (فولتية مع امبير مع هيرتز) لكل قاطع وتكون التوصيلات الداخلية بازبار ويحتوي على قاطع دوره نوع (RCCD) شاملا السعر مد وربط قابلو (يتم تحديد حجمه من قبل لجنة الاشراف يربط بين القاطع الرئيسي الى القواطع الفرعية وكذلك القابلو الرئيسي الذي يغذي قاطع الموتورايز ويكون البورد الكهربائي مكيف (تبريد) سبلت كنتوري(4) طن مع كل ما يتطلبه العمل وحسب توجيهات المهندس المشرف . | C44: جملة | D44: جملة | E44: 20000000 | F44: 20000000
B45: د - محطة الكيمياويات
A46: 1 | B46: لقيام بتجهيز لوحة اسيطرة رئيسية وتشمل قاطع دورة رئيسي نوع (موتورايز) وحسب السعة التي تحددها لجنة الاشراف مع تجهيز وتركيب قواطع دورة ذو حمايات مدمجة لكل جهاز وقاطع خاص بالانارة والخدمات ويكون داخل بورد حديدي مصنوع ممن البليت سمك (2) ملم مع الصبغ الحراري مع تجهيز مقاييس (فولتية مع امبير مع هيرتز) لكل قاطع ويحتوي على قاطع دوره نوع (RCCD) وتكون التوصيلات الداخلية بازبار شاملا السعر مد وربط قابلو (يتم تحديد حجمه من قبل لجنة الاشراف يربط بين القاطع الرئيسي الى القواطع الفرعية وكذلك القابلو الرئيسي الذي يغذي قاطع الموتورايز ويكون البورد الكهربائي مكيف (تبريد) سبلت كنتوري(4) طن مع كل ما يتطلبه العمل وحسب توجيهات المهندس المشرف . | C46: جملة | D46: جملة | E46: 15000000 | F46: 15000000
B47: ه - محطة الاطيان
A48: 1 | B48: القيام بتجهيز لوحة اسيطرة رئيسية وتشمل قاطع دورة رئيسي نوع (موتورايز) وحسب السعة التي تحددها لجنة الاشراف مع تجهيز وتركيب قواطع دورة ذو حمايات مدمجة لكل مضخة وقاطع خاص بالانارة والخدمات ويكون داخل بورد حديدي مصنوع ممن البليت سمك (2) ملم مع الصبغ الحراري مع تجهيز مقاييس (فولتية مع امبير مع هيرتز) لكل قاطع وتكون التوصيلات الداخلية بازبار ويحتوي على قاطع دوره نوع (RCCD) شاملا السعر مد وربط قابلو (يتم تحديد حجمه من قبل لجنة الاشراف يربط بين القاطع الرئيسي الى القواطع الفرعية وكذلك القابلو الرئيسي الذي يغذي قاطع الموتورايز ويكون البورد الكهربائي مكيف (تبريد) سبلت كنتوري(4) طن مع كل ما يتطلبه العمل وحسب توجيهات المهندس المشرف . | C48: جملة | D48: جملة | E48: 5000000 | F48: 5000000
B49: و - محطة الغسيل
A50: 1 | B50: القيام بتجهيز لوحة اسيطرة رئيسية وتشمل قاطع دورة رئيسي نوع (موتورايز) وحسب السعة التي تحددها لجنة الاشراف مع تجهيز وتركيب قواطع دورة ذو حمايات مدمجة لكل مضخة وقاطع خاص بالانارة والخدمات ويكون داخل بورد حديدي مصنوع ممن البليت سمك (2) ملم مع الصبغ الحراري مع تجهيز مقاييس (فولتية مع امبير مع هيرتز) لكل قاطع وتكون التوصيلات الداخلية بازبار ويحتوي على قاطع دوره نوع (RCCD) شاملا السعر مد وربط قابلو (يتم تحديد حجمه من قبل لجنة الاشراف يربط بين القاطع الرئيسي الى القواطع الفرعية وكذلك القابلو الرئيسي الذي يغذي قاطع الموتورايز ويكون البورد الكهربائي مكيف (تبريد) سبلت كنتوري(4) طن مع كل ما يتطلبه العمل وحسب توجيهات المهندس المشرف . | C50: جملة | D50: جملة | E50: 15000000 | F50: 15000000
B51: ز - محطة المحولات
A52: 1 | B52: تجهيز ونصب وفحص وتشغيل محولة كهربائية سعة (4) ميكا فولت امبير نوع (كيوسك) مع كافة متطالبات العمل من توصيل ونصب قابلوات مع الجنج اوفر (اوتوماتيك) على ان تكون ذات منشا غربي وحسب المواصفات العراقية)D26 H.V:11000V Frequency: 50 Hz, 3Ph DYN 11 , L.V: 416 t240V | C52: عدد | D52: 2 | E52: 125000000 | F52: =E52*D52 -> 250000000
A53: 2 | B53: تجهيز مواد ومعدات والقيام بتجهيز قاطع دورة رئيسي (نوع موتورايز) حجم (5000) امبير عدد/2 مع قواطع فرعية لمناطق (السحب والدفع والكيمياويات والفلاتر والاطيان ودور المشغلين والغسيل ) نوع موتورايز وتكون مربوطة بقاطع دورة نوع (RCCD) (قياس التيار الفرقي) ويتم تحديد السعات من قبل لجنة الاشراف وحسب الحاجة الفعلية على ان تكون داخل لوحة سيطرة وتكون التوصيلات الداخلية (بازبار) مع كافة المقاييس المطلوبة اضاقة الى قاطع دورة لكل من الخدمات والانارة مع كل ما يتطلبه العمل وحسب توجيهات المهندس المشرف | C53: جملة | D53: جملة | E53: 60000000 | F53: 60000000
B54: المجموع / | F54: =SUM(F38:F53) -> 590000000
B55: خامسا : اعمال الفلاتر
A56: 1 | B56: اتجهيز المواد والمعدات اللازمة لازالة كافة طبقات الحصى والرمل عن الفلاتر ونقلها الى مكان يختاره المهندس المقيم وتنظيف الفلتر واصلاح التسربات مع تجهيز انابيب جديدة ووضعها في مكانها المخصص مع تجهيز ووضع طبقات الحصى والرمل الناجح بالفحص المختبري الى مستوياته الاصلية وبكافة تدرجاته بحيث يكون اداء الفلتر بصورة جيدة والماء المنتج مطابق للمواصفات الفنية شاملا السعر تنضيف جدران الفلاتر مع صبغها بطبقتين من الايبوكسي الاساس وثلاث طبقات من الايبوكسي الغذائي مع معالجة كافة الاضرار ان وجدت وحسب توجيهات المهندس المشرف. | C56: عدد | D56: 16 | E56: 20000000 | F56: =E56*D56 -> 320000000
A57: 2 | B57: تجهيز وربط ونصب وفحص مضخات الغسيل (640م3/سا ×10م) ع المحرك الكهربائي مع ستارتر جديد ويتظمن ( قاطع دورة وكونتاكتر واوفرلود وتايمر وكيج اضوية ومصابيح واسلاك وكيبلات )وتكون لوحات السيطرة الرئيسية ذات نمط تشغيل (سوفت ستار) مع تجهيز المحركات الكهربائية بحساسات حرارية (متحسس حراري) وميكانيكا يحتوي على قاطع دوره نوع (RCCD) مع تجهيز قابلو (يتم تحديد حجمه حسب الكيلوواطية للمضخة من المضخة الى الستارتر ومن الستارتر الى لوحة السيطرة الرئيسية مع كل ما يتطلبه العمل على ان تكون جميع التسليكات الداخلية للبورد الكهربائي بواسطة بازبارات نحاسية وحسب توجيهات المهندس المشرف مع تجهيز مواد احتياطية للمضخة تشم ( بولبرنات مع شفت مع بشارة مع اطواق ) وعلى ان تكون جميع المواد المجهزه غربية المنشا وجديدة | C57: عدد | D57: 3 | E57: 20000000 | F57: =E57*D57 -> 60000000
A58: 3 | B58: تجهيز المواد والمعدات اللازمة والقيام بفتح جميع الاقفال الكهربائية الخاصة بالفلاتر والقيام بتجهيز وربط وتشغيل وتسليك اقفال جديدة عدد (5) لكل فلتر والبالغ عددها (16) فلترمع كل ما يتطلبة العمل وتوجيهات المهندس المشرف | C58: عدد | D58: 80 | E58: 5000000 | F58: =E58*D58 -> 400000000
A59: 4 | B59: تبديل كافة اجزاء البورد الرئيسي الخاص بمنطقة الفلاتر مع كافة الكيبلات الكهربائية والتوصيلات الى الفلاتر مع كل ما يتطلبه العمل | C59: جملة | D59: جملة | E59: 5000000 | F59: 5000000
A60: 5 | B60: تجهيز المواد والمعدات اللازمة لتبديل مجموعة صمامات محطة الغسيل وكل مجموعة تضم ( صمامات من جهة السحب والدفع وعدم رجوع لكل مضخة ) مع كل ما هو مطلوب لضمان الاداء الجيد وبدون تسريب ويجب صبغ كل الصمامات باستخدام طلاء اوكسيد احمر وبعده صبغ زيتي لماع ذو نوعية جيدة وحسب توجيهات المهندس المشرف | C60: عدد | D60: 3 | E60: 4000000 | F60: =E60*D60 -> 12000000
A61: 6 | B61: تبديل كافة لوحات السيطرة الخاصة بكل فلتر مع ما يتطلبه العمل من توصيلات كهربائية مع البورد الرئيسي العائد للفلاتر. | C61: عدد | D61: 16 | E61: 2000000 | F61: =E61*D61 -> 32000000
A62: 7 | B62: تجهيز المواد والمعدات اللازمة لتبديل كافة بوابات الدخول والخروج من الفلتر مع الشفت والبوشة وانابيب التي تربطها مع قفل التحكم بها مع كل ما يتطلبه العمل لضمان الاداء الجيد للفلتر وحسب توجيهات ىالمهندس المقيم. | C62: جملة | D62: جملة | E62: 20000000 | F62: 20000000
A63: 8 | B63: تجهيز المواد والقيام بعمل اغطية للمنهولات ذات قياس (1.5×1.5)متر باستخدام الجكر بليت سمك 6ملم مع كل ما يتطلبة العمل وتوجيهات المهندس المشرف . | C63: عدد | D63: 16 | E63: 500000 | F63: =E63*D63 -> 8000000
A64: 9 | B64: تجهيز المواد والمعدات اللازمة لتعديل الموقع القائم لصمامات منافذ الفلاتر على موقع اخر ( يحدد قرب الجدران الداخلية لغرفة الفلاتر ) بحيث يكون الدوار العمودي( الذي يربط المحرك الكهربائي بالصمام ) بوضع عامودي تماما بدل الوضع المائل . | C64: عدد | D64: 16 | E64: 1000000 | F64: =E64*D64 -> 16000000
B65: المجموع / | F65: =SUM(F56:F64) -> 873000000
B66: سادسا: اعمال احواض الترسيب
A67: 1 | B67: جهيز مواد ومعدات والقيام بصيانة وتصليح وتبديل الأجزاء المتضررة في احواض الترسيب وكما يلي :- تجهيز وربط اطارات جديدة نوعية جيدة لكاسحة الاطيان | C67: عدد | D67: 6 | E67: 300000 | F67: =E67*D67 -> 1800000
A68: 2 | B68: تجهيز وربط البليت الدائري للحوض(السكاكين) ستانلس ستيل سمك (3 ملم) وعرض(30 سم ) | C68: م.ط | D68: 1200 | E68: 10000 | F68: 12000000
A69: 3 | B69: صيانة وتنظيف احواض الترسيب من الاطيان | C69: عدد | D69: 3 | E69: 2000000 | F69: 6000000
A70: 4 | B70: تجهيز وربط وتشغيل محرك كاسحة (3 KW )(6.5 A ) ( 1500 دورة/د ) | C70: عدد | D70: 3 | E70: 250000 | F70: 750000
A71: 5 | B71: تجهيز وربط وتشغيل محرك كاسحة (2 KW )(4.8 A ) ( 1000 دورة/د ) | C71: عدد | D71: 3 | E71: 200000 | F71: 600000
A72: 6 | B72: تجهيز وربط وتشغيل محرك كاسحة (1.5 KW ) (3.7 A ) ( 1500 دورة/د) | C72: عدد | D72: 3 | E72: 150000 | F72: 450000
A73: 7 | B73: تجهيز وربط ونصب وفحص مضخات بناية الاطيان (240م3/سا ×7م) مع المحرك الكهربائي مع ستارتر جديد( ) ويتظمن ( قاطع دورة وكونتاكتر واوفرلود وتايمر وكيج اضوية ومصابيح واسلاك وكيبلات ) تكون لوحات السيطرة الرئيسية ذات نمط تشغيل (سوفت ستار) مع تجهيز المحركات الكهربائية بحساسات حرارية (متحسس حراري) وميكانيكا مع كل ما يتطلبه العمل من وحسب توجيهات المهندس المشرف مع تجهيز مواد احتياطية للمضخة تشمل ( بولبرنات مع شفت مع بشارة مع اطواق ) وعلى ان تكون جميع المواد ألمجهزه غربية المنشأ وجديدة | C73: عدد | D73: 2 | E73: 10000000 | F73: 20000000
A74: 8 | B74: تجهيز المواد والمعدات اللازمة والقيام بإدامة السكريبر لأحواض الترسيب ويشمل العمل قلع كافة الأجزاء الحديدية (الربوطات ) والمماشي واستبدالها بأجزاء جديدة مع القيام بتقوية المساند الحديدية . ويشمل العمل وكاسحات الأطيان وجميع الخلاطات الموجودة مع كافة التسليكات الكهربائية بأجزاء جديدة من مناشئ رصينة . والقيام بطلاء أجزاء السكريبر بمادة الايبوكسي الغذائي مع كل ما يتطلبة العمل وتوجيهات المهندس المشرف | C74: عدد | D74: 3 | E74: 1000000 | F74: 3000000
A75: 9 | B75: تجهيز المواد والمعدات اللازمة والقيام بتبديل كافة التاسيسات (الانابيب +الاقفال والعكوس) العائدة لمنطقة خروج الماء من احواض الترسيب (منطقة الاطيان) مع كل ما يتطلبه العمل | C75: جملة | D75: جملة | E75: 6000000 | F75: 6000000
A76: 10 | B76: تبديل البورد الرئيسي الخاص باحواض الترسيب (كاسحات الاطيان) مع كافة الكيبلات الكهربائية مع كل ما يتطلبه العمل | C76: جملة | D76: جملة | E76: 2000000 | F76: 2000000
A77: 11 | B77: تجهيز ونصب وربط وفحص خلاط الشب محرك (4 KW ) (9 )A (1500 دورة/ دقيقة ) المزج السريع مع كل ما يتطلبه العمل وحسب توجيهات المهندس المشرف . | C77: عدد | D77: 2 | E77: 3000000 | F77: =E77*D77 -> 6000000
B78: المجموع / | F78: =SUM(F67:F77) -> 58600000
B79: سابعا: اعمال الكيمياويات
A80: 1 | B80: تجهيز وربط ونصب وفحص جهاز كلور (20 كغم / سا ) غربي المنشا وجديد مع المخفف مع الهيتر مع كافة التراكيب والمواد اللازمة للجهاز مع تبديل كافة الأنابيب والتاسيسات القديمة باخرى جديدة وربطها في المناطق المخصصة لها من منطقة الكلور والى حوض الترسيب ( مسافة 300 م.ط ) ومنطقة الدفع مع التاسيسات الكهربائية اللازمة لتشغيل اجهزة الكلورمع كل ما يتطلبه العمل لظمان الأداء الجيد للجهاز وحسب توجيهات المهندس المشرف | C80: عدد | D80: 4 | E80: 15000000 | F80: =E80*D80 -> 60000000
A81: 2 | B81: تجهيز ونصب وربط وفحص بوستر يسعة (5 م3/س×110 م) مع كافة الملحقات والتوصيلات اللازمة وحسب توجيهات المهندس المشرف . | C81: عدد | D81: 3 | E81: 4000000 | F81: =E81*D81 -> 12000000
A82: 3 | B82: تجهيز وربط ونصب وفحص جهاز زرق الشب (1000 لتر / سا ) غربي المنشا وجديد مع مع كافة التراكيب والمواد اللازمة للجهاز مع تبديل كافة الانابيب والتاسيسات القديمة باخرى جديدة وربطها في المناطق المخصصة لها من منطقة الشب والى المزج السريع ( مسافة 200 م.ط ) مع كل ما يتطلبه العمل لظمان الاداء الجيد للجهاز وحسب توجيهات المهندس المشرف | C82: عدد | D82: 6 | E82: 7500000 | F82: =E82*D82 -> 45000000
A83: 4 | B83: تجهيز ونصب وربط وفحص خلاط الشب المزج البطئ محرك (3 KW ) مع الكير بوكس مع تبديل كافة الاجزاء المتضررة والاسلاك والذراع الرئيسي الحديدي وتنفيذ كافة الاعمال الاصلاحية لقاعدة الخلاط ويشمل ذلك اللحيم والقطع اضافة الى كل التاسيسات الكهربائية لكل جزء وحسب توجيهات المهندس المشرف . | C83: عدد | D83: 3 | E83: 1500000 | F83: =E83*D83 -> 4500000
A84: 5 | B84: تجهيز المواد والمعدات والقيام بعمل حوض تغطيس لاسطوانات الكلور مع ما يتطلبه العمل من غواطس وتصريف للماء وعمل مرشة للحوض وحسب المخططات المعتمدة لدى المديرية العامة للماء مع تجهيز كرين وحسب توجيهات المهندس المشرف | C84: جملة | D84: جملة | E84: 40000000 | F84: 40000000
A85: 6 | B85: صيانة وتنظيف وتصليح حوض خلط الشب (48) م3 وطلائه بطلاء مقاوم للصدأ من الداخل وبصبغ عادي من الخارج مع تجهيز الحوض بصناديق مسحوق الشب ويجب ان تكون جديدة وذات نوعية جيدة ( خشبية أو حديد مقاوم للصدأ ) تنصب داخل الحوض وبابعاد (4×1×1.5) م وابدال كافة التاسيسات مع كل ما يتطلبه العمل على ان تكون الجدران مصبوغة بمادة الايبوكسي الاساس بطبقتين ومن ثم الايبوكسي الغذائي ثلاث طبقات. | C85: عدد | D85: 3 | E85: 5000000 | F85: =E85*D85 -> 15000000
B86: المجموع / | F86: =SUM(F80:F85) -> 176500000
B87: ثامنا/ المولدات
A88: 1 | B88: تجهيز ونصب وفحص وتشغيل مولدة جديدة (2000 كي في أي ) منشا غربي . مع عمل قاعدة كونكريتية مسلحة وحسب الابعاد للمولدة المجهزة والقيام بتجهيز ونصب جنج اوفر سويج مع كل مولدة منشا غربي مع تجهيز ومد كيبل مسلح (PVC) قياس (4(3×240+120))ملم2 وحسب الاطوال في موقع العمل مع القيام بتجهيز وتركيب خزان وقود سعة 30 م3 . لكل مولد وحسب المواصفات الفنية وتوجيهات المهندس المشرف . | C88: عدد | D88: 2 | E88: 360000000 | F88: =E88*D88 -> 720000000
B89: المجموع / | F89: =SUM(F88) -> 720000000
B90: تاسعا/ الاعمال المدنية
A91: أ | B91: محطة السحب الواطئ
A92: 1 | B92: تجهيز المواد والمعدات والقيام بقلع كافة (البياض + اللبخ الخارجي) واعادة العمل بها من جديد مع رفع كافة الانقاض خارج حدود البلدية مع ما يتطلبه العمل وحسب المواصفات الفنية وتوجيه دائرة المهندس المقيم. | C92: م2 | D92: 1200 | E92: 15000 | F92: =E92*D92 -> 18000000
A93: 2 | B93: تجهيز المواد والقيام بتبديل السيراميك لجدران الغرفة لمحطة السحب وحسب توجيهات المهندس المشرف | C93: م2 | D93: 500 | E93: 20000 | F93: 10000000
A94: 3 | B94: تجهيز المواد والمعدات والقيام بتركيب زجاج جديد للنوافذ ومن النوع البلاستيكي . ويشمل العمل قلع الزجاج القديم واعادة تركيب الزجاج الجديد وباستخدام المعجون . ويشمل العمل طلاء الشبابيك باستخدام الصبغ الدهني ثلاث قوط مع عمل كتائب خارجية لكل شباك وحسب توجيهات المهندس المشرف. | C94: م2 | D94: 100 | E94: 50000 | F94: 5000000
A95: 4 | B95: تجهيز المواد والمعدات الخاصة والقيام بصيانة الدرج الخاص بغرفة المضخات ويشمل العمل تبديل قطع الدرجات وباستخدام قطع الكاشي الموزاييك . مع كل ما يتطلبة العمل . وحسب توجيهات المهندس المشرف. | C95: م.ط | D95: 8 | E95: 25000 | F95: 200000
A96: 5 | B96: تجهيز المواد والمعدات الخاصة والقيام بقلع المحجر الحديدي القديم وستبدالة بمحجر جديد وبستخدام انبوب حديد مغلون (40 ) ملم وبارتفاع 1 متر مع طلائة بطلاء دهني ثلاث قوط . | C96: م.ط | D96: 60 | E96: 15000 | F96: 900000
A97: 6 | B97: تجهيز المواد والمعدات الخاصة والقيام بتجهيز وتركيب مفرغات الهواء قياس (50×50) سم ويشمل العمل اعادة تسليك كافة الاسلاك الكهربائية اللازمة لتشغيل المفرغات . وحسب توجيهات المهندس المشرف . | C97: عدد | D97: 5 | E97: 60000 | F97: 300000
A98: 7 | B98: تجهيز المواد والمعدات الخاصة والقيام بتجهيز وتركيب باب خشب صاج قياس (2×1) متر كبس وجهين نوعية جيدة مع الاطار الخاص به . ويشمل العمل تجهيز وتركيب كيلون نوعية جيدة . مع كل ما يتطلبة العمل وتوجيهات المهندس المشرف. تجهيز المواد والمعدات الخاصة والقيام بتجهيز وتركيب باب حديد قياس (2.4×2.3) متر كبس وجهين نوعية جيدة مع الاطار الخاص به مع الطلاء ثلاث قوط باستخدام الصبغ الدهني . ويشمل العمل تجهيز وتركيب كيلون نوعية جيدة . مع كل ما يتطلبة العمل وتوجيهات المهندس المشرف. | C98: عدد | D98: 2 | E98: 400000 | F98: 800000
A99: 8 | B99: تبديل كافة التاسيسات الكهربائية والانارة لغرفة لمحطة السحب | C99: جملة | D99: جملة | E99: 1000000 | F99: 1000000
A100: 9 | B100: القيام بقلع واستبدال الكاشي الموزائيك القديم باخر جديد .وباللون الذي يحدده المهندس المشرف مع كل ما يتطلبه العمل وحسب المواصفات الفنية. | C100: م2 | D100: 500 | E100: 20000 | F100: =E100*D100 -> 10000000
B101: المجموع / | F101: =SUM(F92:F100) -> 46200000
A102: ب | B102: محطة الاطيان
A103: 1 | B103: تجهيز المواد والمعدات والقيام بقلع كافة (البياض + اللبخ الخارجي) واعادة العمل بها من جديد مع رفع كافة الانقاض خارج حدود البلدية مع ما يتطلبه العمل وحسب المواصفات الفنية وتوجيه دائرة المهندس المقيم. | C103: م2 | D103: 100 | E103: 15000 | F103: =E103*D103 -> 1500000
A104: 2 | B104: تجهيز المواد والمعدات والقيام بتركيب زجاج جديد للنوافذ ومن النوع البلاستيكي . ويشمل العمل قلع الزجاج القديم واعادة تركيب الزجاج الجديد وباستخدام المعجون . ويشمل العمل طلاء الشبابيك باستخدام الصبغ الدهني ثلاث قوط مع عمل كتائب خارجية لكل شباك وحسب توجيهات المهندس المشرف. | C104: م2 | D104: 12 | E104: 10000 | F104: =E104*D104 -> 120000
B105: المجموع / | F105: =SUM(F103:F104) -> 1620000
A106: ج | B106: محطة الشب
A107: 1 | B107: تجهيز المواد والمعدات والقيام بقلع كافة (البياض للسقوف + اللبخ الخارجي) واعادة العمل بها من جديد مع رفع كافة الانقاض خارج حدود البلدية مع ما يتطلبه العمل وحسب المواصفات الفنية وتوجيه دائرة المهندس المقيم. | C107: م2 | D107: 150 | E107: 15000 | F107: =E107*D107 -> 2250000
A108: 2 | B108: تجهيز المواد والقيام بقلع السيراميك للجدران والارضية وستبداله بسيراميك حامضي جديد نوعية جيدة ( اسباني ) ويشمل العمل رفع كافة الانقاض وطرحها خارج المشروع وحسب توجيهات المهندس المشرف . | C108: م2 | D108: 350 | E108: 20000 | F108: 7000000
A109: 3 | B109: تجهيز المواد والمعدات الخاصة والقيام بتجهيز وتركيب مفرغات الهواء قياس (50×50) سم ويشمل العمل كافة اعادة تسليك كافة الاسلاك الكهربائية اللازمة لتشغيل المفرغات . وحسب توجيهات المهندس المشرف . | C109: عدد | D109: 3 | E109: 60000 | F109: 180000
A110: 4 | B110: تجهيز المواد والقيام بتجهيز باب حديد سلايد وباستخدام حديد بليت سمك 4 ملم في تغليف الباب من الوجهين قياس (4×6) متر مع عمل سكة حديدية لتثبيت الباب باستخدام حديد الشيلمان والتثبيت بصورة جيدة وختيار بولبرنات خاصة نوعية جيدة من مناشئ اصلية .لحركة الباب . مع تثبيت الكيلون الخاص به وطلائه بثلاث قوط من الصبغ الدهني . وحسب توجيهات المهندس المشرف | C110: عدد | D110: 1 | E110: 1500000 | F110: 1500000
A111: 5 | B111: تجهيز المواد والمعدات الخاصة والقيام بتجهيز وتركيب باب حديد قياس (2.4×2.3) متر كبس وجهين نوعية جيدة مع الاطار الخاص به مع الطلاء ثلاث قوط باستخدام الصبغ الدهني . ويشمل العمل تجهيز وتركيب كيلون نوعية جيدة . مع كل ما يتطلبة العمل وتوجيهات المهندس المشرف. | C111: عدد | D111: 2 | E111: 350000 | F111: 700000
A112: 6 | B112: تجهيز المواد والقيام بتركيب بلاجكتور (400) واط زئبقي نوعية جيدة مع كافة التوصيلات الكهربائية وحسب توجيهات المهندس المشرف. | C112: عدد | D112: 8 | E112: 50000 | F112: 400000
A113: 7 | B113: تجهيز المواد والمعدات والقيام بتركيب زجاج جديد للنوافذ ومن النوع البلاستيكي . ويشمل العمل قلع الزجاج القديم واعادة تركيب الزجاج الجديد وباستخدام المعجون . ويشمل العمل طلاء الشبابيك باستخدام الصبغ الدهني ثلاث قوط مع عمل كتائب خارجية لكل شباك وحسب توجيهات المهندس المشرف. | C113: جملة | D113: جملة | E113: 2000000 | F113: 2000000
B114: المجموع / | F114: =SUM(F107:F113) -> 14030000
A115: د | B115: احواض الترسيب
A116: 1 | B116: تجهيز المواد والمعدات اللازمة للقيام بدفن وتسوية المناطق المتعرضة الى الهطول حول احواض الترسيب . باستخدام السبيس الناجح في الفحص المختبري وبنسبة رص لاتقل عن (95%) وعل شكل طبقات مع الحدل وحسب توجيهات المهندس المشرف . | C116: جملة | D116: جملة | E116: 2000000 | F116: 2000000
A117: 2 | B117: تجهيز المواد والمعدات اللازمة لتنظيف احواض الترسيب من الداخل واصلاح الاجزاء المتضررة وطلاء الاجزاء المعدنية في الحوض بمادة الايبوكسي الغذائي مع كل ما يتطلبة العمل وتوجيهات المهندس المشرف . | C117: عدد | D117: 3 | E117: 2000000 | F117: =E117*D117 -> 6000000
A118: 3 | B118: تجهيز المواد والقيام بعمل ممشى من الكونكريت بعرض 1 متر وسمك 30 سم حول احواض الترسيب . ويشمل العمل كذلك عمل ممشى من الكونكريت المسلح بين احواض الترسيب بعرض (ا)متر وسمك 30 سم بعد عملية تسوية وحدل مكان المماشي بالسبيس وحسب توجيهات المهندس المشرف. | C118: م3 | D118: 110 | E118: 250000 | F118: =E118*D118 -> 27500000
B119: المجموع / | F119: =SUM(F116:F118) -> 35500000
A120: ه | B120: منطقة الفلاتر + الغسيل
A121: 1 | B121: تجهيز المواد والمعدات والقيام بقلع كافة (البياض + اللبخ الخارجي) واعادة العمل بها من جديد مع رفع كافة الانقاض خارج حدود البلدية مع ما يتطلبه العمل وحسب المواصفات الفنية وتوجيه دائرة المهندس المقيم. | C121: م2 | D121: 1600 | E121: 15000 | F121: =E121*D121 -> 24000000
A122: 2 | B122: تجهيز المواد والمعدات والقيام بتركيب زجاج جديد للنوافذ ومن النوع البلاستيكي . ويشمل العمل قلع الزجاج القديم واعادة تركيب الزجاج الجديد وباستخدام المعجون . ويشمل العمل طلاء الشبابيك باستخدام الصبغ الدهني ثلاث قوط مع عمل كتائب خارجية لكل شباك وحسب توجيهات المهندس المشرف. | C122: م2 | D122: 120 | E122: 10000 | F122: 1200000
A123: 3 | B123: تجهيز المواد والمعدات الخاصة والقيام بتجهيز وتركيب باب خشب صاج قياس (2.5×2) متر كبس وجهين نوعية جيدة مع الاطار الخاص به . ويشمل العمل تجهيز وتركيب كيلون نوعية جيدة . مع كل ما يتطلبة العمل وتوجيهات المهندس المشرف. | C123: عدد | D123: 1 | E123: 500000 | F123: 500000
A124: 4 | B124: تجهيز المواد والمعدات الخاصة والقيام بتجهيز وتركيب باب خشب صاج قياس (2×1) متر كبس وجهين نوعية جيدة مع الاطار الخاص به . ويشمل العمل تجهيز وتركيب كيلون نوعية جيدة . مع كل ما يتطلبة العمل وتوجيهات المهندس المشرف. | C124: عدد | D124: 5 | E124: 400000 | F124: 2000000
A125: 5 | B125: تجهيز المواد والمعدات الخاصة والقيام بتاهيل الممشى الحديدي والمحجر الحديدي الحاص بة مع القيام بطلاء الاجزاء ثلاث قوط باستخدام الصبغ الدهني . وحسب توجيهات المهندس المشرف . | C125: م.ط | D125: 40 | E125: 15000 | F125: 600000
A126: 6 | B126: تجهيز المواد والقيام بقلع الكاشي القديم للارضيات وستبداله بكاشي جديد نوعية جيدة ويشمل العمل رفع كافة الانقاض وطرحها خارج المشروع وحسب توجيهات المهندس المشرف . | C126: م2 | D126: 200 | E126: 20000 | F126: 4000000
B127: المجموع / | F127: =SUM(F121:F126) -> 32300000
A128: و | B128: منطقة الكلور
A129: 1 | B129: تجهيز المواد والقيام بقلع السيراميك للجدران والارضية وستبداله بسيراميك حامضي جديد نوعية جيدة ( اسباني ) ويشمل العمل رفع كافة الانقاض وطرحها خارج المشروع وحسب توجيهات المهندس المشرف . | C129: م2 | D129: 350 | E129: 20000 | F129: =E129*D129 -> 7000000
A130: 2 | B130: تجهيز المواد والمعدات الخاصة والقيام بتجهيز وتركيب مفرغات الهواء قياس (50×50) سم ويشمل العمل كافة اعادة تسليك كافة الاسلاك الكهربائية اللازمة لتشغيل المفرغات . وحسب توجيهات المهندس المشرف . | C130: عدد | D130: 4 | E130: 60000 | F130: =E130*D130 -> 240000
A131: 3 | B131: تجهيز المواد والمعدات الخاصة والقيام بتجهيز وتركيب باب حديد قياس (2.4×2.3) متر كبس وجهين نوعية جيدة مع الاطار الخاص به مع الطلاء ثلاث قوط باستخدام الصبغ الدهني . ويشمل العمل تجهيز وتركيب كيلون نوعية جيدة . مع كل ما يتطلبة العمل وتوجيهات المهندس المشرف. | C131: عدد | D131: 2 | E131: 400000 | F131: =E131*D131 -> 800000
A132: 4 | B132: تجهيز المواد والقيام بتجهيز باب حديد سلايد وباستخدام حديد بليت سمك 4 ملم في تغليف الباب من الوجهين قياس (4×6) متر مع عمل سكة حديدية لتثبيت الباب باستخدام حديد الشيلمان والتثبيت بصورة جيدة وختيار بولبرنات خاصة نوعية جيدة من مناشئ اصلية .لحركة الباب . مع تثبيت الكيلون الخاص به وطلائه بثلاث قوط من الصبغ الدهني . وحسب توجيهات المهندس المشرف | C132: عدد | D132: 1 | E132: 1500000 | F132: =E132*D132 -> 1500000
A133: 5 | B133: تجهيز المواد والمعدات والقيام بعمل مرشة (دوش) الخاصة بمنطقة تسرب الكلور ويشمل العمل كافة التاسيسات والربوطات من مصدر الماء مع كل ما يتطلبه العمل وحسب توجيهات المهندس المشرف | C133: جملة | D133: جملة | E133: 2000000 | F133: 2000000
A134: 6 | B134: تجهيز المواد والمعدات والقيام بعمل حوض تغطيس لاسطوانات الكلور مع ما يتطلبه العمل من غواطس وتصريف للماء وعمل مرشة للحوض مع تجهيز كرين ويكون مرتبط بمناطق (حوض التغطيس + غرفة الكلور +السقيفة) وحسب توجيهات المهندس المشرف | C134: جملة | D134: جملة | E134: 40000000 | F134: 40000000
A135: 7 | B135: تجهيز المواد والمعدات اللازمة والقيام بعمل سقيفة لاسطوانات الكلور (10×8) م ويشمل العمل الحفر ومن ثم صب ارضية وحسب المواصفات الفنية المعتمدة وتوجيهات المهندس المشرف مع كل ما يتطلبه العمل | C135: جملة | D135: جملة | E135: 10000000 | F135: 10000000
A136: 8 | B136: تجهيز المواد والمعدات والقيام بتركيب زجاج جديد للنوافذ ومن النوع البلاستيكي . ويشمل العمل قلع الزجاج القديم واعادة تركيب الزجاج الجديد وباستخدام المعجون . ويشمل العمل طلاء الشبابيك باستخدام الصبغ الدهني ثلاث قوط مع عمل كتائب خارجية لكل شباك وحسب توجيهات المهندس المشرف. | C136: م2 | D136: 80 | E136: 10000 | F136: =E136*D136 -> 800000
B137: المجموع / | F137: =SUM(F129:F136) -> 62340000
A138: ز | B138: خزان التجميع ( الخزان لارضي)
A139: 1 | B139: تجهيز مواد والمعدات اللازمة والقيام بتنظيف الخزان الأرضي من الأطيان والأوساخ العالقة به مع كل ما يتطلبه العمل . | C139: جملة | D139: جملة | E139: 1000000 | F139: 1000000
A140: 2 | B140: تجهيز المواد والمعدات والقيام بتبديل فتحات التهوية مع ما يتطلبه العمل | C140: جملة | D140: جملة | E140: 1000000 | F140: 1000000
B141: المجموع / | F141: =SUM(F139:F140) -> 2000000
A142: ح | B142: محطة الدفع
A143: 1 | B143: تجهيز المواد والمعدات والقيام بقلع كافة (البياض + اللبخ الخارجي) واعادة العمل بها من جديد مع رفع كافة الانقاض خارج حدود البلدية مع ما يتطلبه العمل وحسب المواصفات الفنية وتوجيه دائرة المهندس المقيم. | C143: م2 | D143: 1100 | E143: 15000 | F143: =E143*D143 -> 16500000
A144: 2 | B144: تجهيز المواد والقيام بقلع السيراميك القديم للجدران الغرفة واستبداله باخر جديد مع نقل الانقاض خارج حدود البلدية وحسب توجيهات المهندس المشرف | C144: م2 | D144: 100 | E144: 20000 | F144: 2000000
A145: 3 | B145: تجهيز المواد والمعدات والقيام بتركيب زجاج جديد للنوافذ ومن النوع البلاستيكي . ويشمل العمل قلع الزجاج القديم واعادة تركيب الزجاج الجديد وباستخدام المعجون . ويشمل العمل طلاء الشبابيك باستخدام الصبغ الدهني ثلاث قوط مع عمل كتائب خارجية لكل شباك وحسب توجيهات المهندس المشرف. | C145: م2 | D145: 100 | E145: 10000 | F145: 1000000
A146: 4 | B146: تجهيز المواد والمعدات الخاصة والقيام بصيانة الدرج الخاص بغرفة المضخات ويشمل العمل تبديل قطع الدرجات وباستخدام قطع الكاشي الموزاييك . مع كل ما يتطلبة العمل . وحسب توجيهات المهندس المشرف. | C146: م.ط | D146: 22 | E146: 15000 | F146: 330000
A147: 5 | B147: تجهيز المواد والمعدات الخاصة والقيام بقلع المحجر الحديدي القديم وستبدالة بمحجر جديد وبستخدام انبوب حديد مغلون (40 ) ملم وبارتفاع 1 متر مع طلائة بطلاء دهني ثلاث قوط . | C147: م.ط | D147: 120 | E147: 15000 | F147: 1800000
A148: 6 | B148: تجهيز المواد والمعدات الخاصة والقيام بتجهيز وتركيب مفرغات الهواء قياس (50×50) سم ويشمل العمل اعادة تسليك كافة الاسلاك الكهربائية اللازمة لتشغيل المفرغات . وحسب توجيهات المهندس المشرف . | C148: عدد | D148: 5 | E148: 60000 | F148: 300000
A149: 7 | B149: تجهيز المواد والمعدات الخاصة والقيام بتجهيز وتركيب باب خشب صاج قياس (2×1) متر كبس وجهين نوعية جيدة مع الاطار الخاص به . ويشمل العمل تجهيز وتركيب كيلون نوعية جيدة . مع كل ما يتطلبة العمل وتوجيهات المهندس المشرف. | C149: عدد | D149: 2 | E149: 300000 | F149: 600000
A150: 8 | B150: تجهيز المواد والمعدات الخاصة والقيام بتجهيز وتركيب باب حديد قياس (2.4×2.3) متر كبس وجهين نوعية جيدة مع الاطار الخاص به مع الطلاء ثلاث قوط باستخدام الصبغ الدهني . ويشمل العمل تجهيز وتركيب كيلون نوعية جيدة . مع كل ما يتطلبة العمل وتوجيهات المهندس المشرف. | C150: عدد | D150: 1 | E150: 400000 | F150: 400000
A151: 9 | B151: القيام بقلع واستبدال الكاشي الموزائيك القديم باخر جديد.وباللون الذي يحدده المهندس المشرف مع كل ما يتطلبه العمل | C151: م2 | D151: 1000 | E151: 20000 | F151: 20000000
B152: المجموع / | F152: =SUM(F143:F151) -> 42930000
A153: ط | B153: محطة المولدات والمحولات وغرف السيطرة المركزية(الضغط الواطئ + الضغط العالي )
A154: 1 | B154: تجهيز المواد والمعدات والقيام بقلع كافة (البياض + اللبخ الخارجي) واعادة العمل بها من جديد مع رفع كافة الانقاض خارج حدود البلدية مع ما يتطلبه العمل وحسب المواصفات الفنية وتوجيه دائرة المهندس المقيم. | C154: م2 | D154: 700 | E154: 15000 | F154: =E154*D154 -> 10500000
A155: 2 | B155: تجهيز المواد والمعدات والقيام بتركيب زجاج جديد للنوافذ سمك (6) ملم . ويشمل العمل قلع الزجاج المتضرر واعادة تركيب الزجاج الجديد وباستخدام المعجون . ويشمل العمل طلاء الشبابيك باستخدام الصبغ الدهني ثلاث قوط وحسب توجيهات المهندس المشرف. | C155: م2 | D155: 10 | E155: 10000 | F155: =E155*D155 -> 100000
A156: 3 | B156: تبديل كافة التاسيسات الكهربائية والانارة لغرفة المولدات والمحولات وغرف السيطرة المركزية(الضغط الواطئ + الضغط العالي ) | C156: جملة | D156: جملة | E156: 2000000 | F156: 2000000
B157: المجموع / | F157: =SUM(F154:F156) -> 12600000
A158: ي | B158: الشوارع الداخلية
A159: 1 | B159: تجهيز المواد والمعدات اللازمة والقيام باعادة صب الشوارع الداخلية للمشروع بعرض 6متر مك 15 سم بالكونكريت المسلح باستخدام شبكات التسليح (BRC) وبنسبة خلط 1:2:4 .باستخدام الاسمنت المقاوم للاملاح بسمك (20) سم مع فرش الارضية بطبقتين من ماة البولي امي (النايلون) مع عمل مفاصل تمدد لكل (5متر ) مع معالجتها بالفلين مع عمل كربستون مع المردات وانابيب تصريف المياه والسواقي والكليات المناسبة مع كل ما يتطلبة العمل وتوجيهات المهندس المشرف . | C159: م3 | D159: 500 | E159: 250000 | F159: =E159*D159 -> 125000000
A160: 2 | B160: تجهيز ونصب وربط وتشغيل اعمدة انارة للشوارع الداخلية والمشروع مختلفة الاطوال والاحجام والانواع (تحدد من قبل لجنة الاشراف ) مع تجهيز وربط خلية ضوئية لكل مجموعة عدد/5 مع كل ما يتطلبه العمل | C160: عدد | D160: 40 | E160: 500000 | F160: =E160*D160 -> 20000000
B161: المجموع / | F161: =SUM(F159:F160) -> 145000000
A162: ك | B162: دور المشروع
A163: 1 | B163: تجهيز المواد والمعدات والقيام بقلع كافة (البياض + اللبخ الخارجي) واعادة العمل بها من جديد مع رفع كافة الانقاض خارج حدود البلدية مع ما يتطلبه العمل وحسب المواصفات الفنية وتوجيه دائرة المهندس المقيم. | C163: م2 | D163: 1360 | E163: 15000 | F163: =E163*D163 -> 20400000
A164: 2 | B164: تجهيز المواد والمعدات والقيام بتركيب زجاج جديد للنوافذ ومن النوع البلاستيكي . ويشمل العمل قلع الزجاج القديم واعادة تركيب الزجاج الجديد وباستخدام المعجون . ويشمل العمل طلاء الشبابيك باستخدام الصبغ الدهني ثلاث قوط مع عمل كتائب خارجية لكل شباك وحسب توجيهات المهندس المشرف.. | C164: م2 | D164: 90 | E164: 10000 | F164: 900000
A165: 3 | B165: تجهيز المواد والقيام بقلع السيراميك للجدران والارضية للحمامات وستبداله بسيراميك جديد نوعية جيدة ( اسباني ) ويشمل العمل رفع كافة الانقاض وطرحها خارج المشروع وحسب توجيهات المهندس المشرف . | C165: م2 | D165: 312 | E165: 20000 | F165: 6240000
A166: 4 | B166: تجهيز مواد ومعدات والقيام بقلع الابواب القديمة ومن ثم تجهيز وتركيب باب خشب (صاج كبس وجهين) بابعاد (2×1) م مع الاطار والكيلون نوعية جيدة ويشمل العمل تكسير واعادة الانهاءات حول الباب وحسب توجيهات المهندس المشرف . | C166: عدد | D166: 28 | E166: 400000 | F166: 11200000
A167: 5 | B167: تجهيز مواد ومعدات والقيام بقلع الابواب القديمة ومن ثم تجهيز وتركيب باب خشب (صاج كبس وجهين) بابعاد (2×1.5)م مع الاطار والكيلون نوعية جيدة ويشمل العمل تكسير واعادة الانهاءات حول الباب وحسب توجيهات المهندس المشرف | C167: عدد | D167: 4 | E167: 450000 | F167: 1800000
A168: 6 | B168: تجهيز مواد ومعدات والقيام بتركيب خزان ماء مغلون بابعاد (1.25×1.25×1.25)م مع الخلاط ويشمل السعر كافة الملحقات المائية التي يتطلبها العمل . | C168: عدد | D168: 5 | E168: 250000 | F168: 1250000
A169: 7 | B169: تجهيز مواد ومعدات والقيام بتركيب سخان ماء سعة (120) لتر كهربائي نوعية جيدة ويشمل العمل كافة الملحقات والتاسيسات المائية والكهربائية التي يتطلبها العمل. | C169: عدد | D169: 5 | E169: 250000 | F169: 1250000
A170: 8 | B170: تجهيز مواد ومعدات والقيام بمد انبوب ماء مغلون قطر(2) انج لغرض ايصال الماء الى الدور ويشمل السعر كافة الملحقات المائية التي يتطلبها العمل . | C170: م.ط | D170: 500 | E170: 3000 | F170: 1500000
A171: 9 | B171: تجهيز مواد ومعدات والقيام بقلع الابواب القديمة ومن ثم تجهيز وتركيب باب حديد بابعاد (1×2)م مع الاطار والكيلون نوعية جيدة مع الصبغ ضد الصدا والصبغ الدهني ثلاث قوط ويشمل العمل التكسير واعادة الانهاءات حول الباب وحسب توجيهات المهندس المشرف . | C171: عدد | D171: 5 | E171: 250000 | F171: 1250000
A172: 10 | B172: تجهيز المواد والمعدات اللازمة والقيام ببناء سياج من مادة البلوك المصمد لدور المشروع بارتفاع 3 متر ويشمل العمل صب كونكريتي مسلح للاسس بمساحة (60×60)سم مع القيام بلبخ ونثر الجدران من الداخل والخارج . مع كل ما يتطلبة العمل وحسب المواصفات الفنية وتوجيهات المهندس المشرف . | C172: م.ط | D172: 150 | E172: 50000 | F172: 7500000
A173: 11 | B173: تجهيز مواد ومعدات والقيام بقلع شتايكر الاسطح لكافة ابنية المشروع ومحطة تقوية الصينية ورفع الانقاض خارج حدود البلدية وتطبيق شتايكر جديد بابعاد(80×80)سم ويشمل العمل فرش طبقة من الرمل النظيف وملئ الفواصل بالماستك وحسب المواصفات الفنية وتوجيهات المهندس المشرف | C173: م2 | D173: 2500 | E173: 10000 | F173: 25000000
A174: 12 | B174: تبديل كافة التاسيسات الكهربائية والانارة لكافة ور المشروع | C174: جملة | D174: جملة | E174: 7000000 | F174: 7000000
B175: المجموع / | F175: =SUM(F163:F174) -> 85290000
B176: بناية المختير
A177: 1 | B177: تجهيز المواد والمعدات والقيام بقلع كافة (البياض + اللبخ الخارجي) واعادة العمل بها من جديد مع رفع كافة الانقاض خارج حدود البلدية مع ما يتطلبه العمل وحسب المواصفات الفنية وتوجيه دائرة المهندس المقيم. | C177: م2 | D177: 500 | E177: 15000 | F177: =E177*D177 -> 7500000
A178: 2 | B178: تجهيز المواد والمعدات والقيام بتركيب زجاج جديد للنوافذ ومن النوع البلاستيكي . ويشمل العمل قلع الزجاج القديم واعادة تركيب الزجاج الجديد وباستخدام المعجون . ويشمل العمل طلاء الشبابيك باستخدام الصبغ الدهني ثلاث قوط مع عمل كتائب خارجية لكل شباك وحسب توجيهات المهندس المشرف. | C178: م2 | D178: 100 | E178: 10000 | F178: 1000000
A179: 3 | B179: تجهيز المواد والقيام بقلع السيراميك للجدران والارضية للحمامات وستبداله بسيراميك جديد نوعية جيدة ( اسباني ) ويشمل العمل رفع كافة الانقاض وطرحها خارج المشروع وحسب توجيهات المهندس المشرف . | C179: م2 | D179: 120 | E179: 20000 | F179: 2400000
A180: 4 | B180: تجهيز مواد ومعدات والقيام بقلع الابواب القديمة ومن ثم تجهيز وتركيب باب خشب (صاج كبس وجهين) بابعاد (2×1.5)م مع الاطار والكيلون نوعية جيدة ويشمل العمل تكسير واعادة الانهاءات حول الباب وحسب توجيهات المهندس المشرف . | C180: عدد | D180: 7 | E180: 400000 | F180: 2800000
A181: 5 | B181: تجهيز مواد ومعدات والقيام بتركيب خزان ماء مغلون بابعاد (1.25×1.25×1.25)م ويشمل السعر كافة الملحقات المائية التي يتطلبها العمل . | C181: عدد | D181: 4 | E181: 250000 | F181: 1000000
A182: 6 | B182: تجهيز مواد ومعدات والقيام بتركيب سخان ماء سعة (120) لتر كهربائي نوعية جيدة ويشمل العمل كافة الملحقات والتاسيسات المائية والكهربائية التي يتطلبها العمل. | C182: عدد | D182: 3 | E182: 250000 | F182: 750000
A183: 7 | B183: تبديل كافة التاسيسات الكهربائية والانارة | C183: جملة | D183: جملة | E183: 2000000 | F183: 2000000
A184: 8 | B184: تجهيز المختبر بكافة المواد المختبرية اللازمة لفحص الماء (اجهزة فحص الكلور +فحص العكورة +جارتيست +فحص المعان+ فحص جار+ بيكرات مختلفة الاحجام +سحاحة مختلفة الاحجام +سخان + ميزان حساس ودقيق +ميزان عادي +اوراق ترشيح+ فرن+ماصة+ دورق+) مع كل ما يتطلبه العمل وحسب توجيهات لجنة الاشراف | C184: جملة | D184: جملة | E184: 10000000 | F184: 10000000
B185: المجموع / | F185: =SUM(F177:F184) -> 27450000
B186: منظومة انذار
A187: 1 | B187: تجهيز المواد والمعدات اللازمة والقيام بعمل منظومة انذار متكاملة لكافة اجزاء المشروع مع الدور السكنية مع محطة التقوية | C187: جملة | D187: جملة | E187: 8000000 | F187: 8000000
B188: المجموع / | F188: =SUM(F187) -> 8000000
B189: منظومة حريق
A190: 1 | B190: تجهيز المواد والمعدات اللازمة والقيام بعمل منظومة حريق متكاملة لكافة اجزاء المشروع مع محطة التقوية | C190: جملة | D190: جملة | E190: 12000000 | F190: 12000000
B191: المجموع / | F191: =SUM(F190) -> 12000000
B192: منظومة مراقبة
A193: 1 | B193: تجهيز المواد والمعدات اللازمة والقيام بعمل منظومة مراقبة متطورة ومتكاملة لكافة اجزاء المشروع مع الدور السكنية مع محطة التقوية | C193: جملة | D193: جملة | E193: 6000000 | F193: 6000000
B194: المجموع / | F194: =SUM(F193) -> 6000000
B195: منظومة سيطرة مركزية
A196: 1 | B196: تجهيز ونصب بورد سيطرة مركزي متكامل (BLC) خاص بالسيطرة على كافة اجزاء المشروع ويتم تحديد المواصفات المطلوبة من قبل دائرة المهندس المقيم | C196: جملة | D196: جملة | E196: 20000000 | F196: 20000000
B197: المجموع / | F197: =SUM(F196) -> 20000000
B198: منظومة تبريد
A199: 1 | B199: تجهيز المواد والمعدات اللازمة والقيام بعمل منظومة تبريد لكل جزء من اجزاء المشروع مع المحطة | C199: جملة | D199: جملة | E199: 20000000 | F199: 20000000
B200: المجموع / | F200: =SUM(F199) -> 20000000
... 34 more rows

Sheet الملغاة (hidden)
A1: مديرية ماء صلاح الدين
A2: اعمال صيانة مجمعات القادسية عدد3 سعة 200م3/س - (الفقرات الملغاة)
A3: ت | B3: التسلسل في الكشف الاصلي | C3: التفاصيل | D3: الوحدة | E3: الكمية | F3: السعر $ | G3: المبلغ $
A4: 1 | B4: خامسا (1) | C4: تجهيز ونصب مضخة ماء افقية للسحب (end sction) بمواصفات (220م3/س × 40م) (1500 دورة/دقيقة) ذات بشارة وشفت من الستنلس ستيل مع تجهيز وتثبيت ستارترات التشغيل التي تلائم سعة المحرك ذو مقاييس رقمية (دجيتل) للفولتية والامبيرية على ان يكون الربط بين اجزاء الستارتر الكهربائي بواسطة بازبارات من النحاس حيث تكون المضخات من مناشيء غربية مشفوعة بشهادة منشأ من البلد المصنع شاملا السعر اعمال تقطيع وربط وتركيب الانابيب والعكوس والتقاسيم والواشرات واية مستلزمات اخرى لاتمام العمل وحسب المواصفات الفنية | D4: عدد | E4: 2 | F4: 25000 | G4: =E4*F4 -> 50000
A5: 2 | B5: خامسا (2) | C5: تجهيز ونصب مضخة ماء افقية للسحب (سبلت كيس) بمواصفات (420م3/س × 40م) (1500 دورة/دقيقة) ذات بشارة وشفت من الستنلس ستيل مع تجهيز وتثبيت ستارترات التشغيل التي تلائم سعة المحرك ذو مقاييس رقمية (دجيتل) للفولتية والامبيرية على ان يكون الربط بين اجزاء الستارتر الكهربائي بواسطة بازبارات من النحاس حيث تكون المضخات من مناشيء غربية مشفوعة بشهادة منشأ من البلد المصنع شاملا السعر اعمال تقطيع وربط وتركيب الانابيب والعكوس والتقاسيم والواشرات واية مستلزمات اخرى لاتمام العمل وحسب المواصفات الفنية | D5: عدد | E5: 2 | F5: 39000 | G5: =E5*F5 -> 78000
A6: =A5+1 -> 3 | B6: خامسا (7) | C6: تجهيز ونصب مضخة ماء الغسيل العكسي بمواصفات (320م3/س × 20م) (3000 دورة/دقيقة) ذات شفت مصنوع من الستنلس ستيل وبشارة مصنوعة من البرونز مع تجهيز وتثبيت ستارترات التشغيل التي تلائم سعة المحرك ذو مقاييس رقمية (دجيتل) للفولتية والامبيرية على ان يكون الربط بين اجزاء الستارتر الكهربائي بواسطة بازبارات من النحاس حيث تكون المضخات من مناشيء غربية مشفوعة بشهادة منشأ من البلد المصنع شاملا السعر اعمال تقطيع وربط وتركيب الانابيب والعكوس والتقاسيم والواشرات واية مستلزمات اخرى لاتمام العمل مع تجهيز كوبلن احتياط لكل مضخة وحسب المواصفات الفنية | D6: عدد | E6: 3 | F6: 13000 | G6: =E6*F6 -> 39000
A7: المجموع/ مائة وسبعة وستون الف دولار امريكي فقط لا غير | G7: =SUM(G4:G6) -> 167000
A11: المهندس المهندس المهندس
A12: عواد متعب تركي مصعب عبد الحق اسماعيل وليد خالد عبد الرحمن
A13: عضو عضو رئيس اللجنة
A17: المهندس المهندس
A18: احمد خلف صالح عدنان شجاع احمد
A19: عضو عضو

Sheet Sheet2
B1: Bills of Quantity ITB 127/17 Rehabilitation of Beji water project (3000 m3/h) With Al Sinieah old station (600 m3/h)- Salahdien Governorate / Stage One
A2: اعمال اعادة تاهيل مشروع ماء بيجي الموحد (3000 م3/ساعة) مع محطة تقوية الصينية القديمة ( 600 م3/ساعة)
A3: # | B3: Item Description | C3: Unit | D3: Qty | E3: Price $ | F3: Total $
A4: A | B4: Low lift pump station
B5: محطة السحب الواطئ
A6: 1 | B6: Supply materials, tools and manpower, to install new ductial pipes double flange between low lift pump station and Strainers (withdrawel suction units) with all fittings required to make job complete in good condition.The work includes dismantling the old pipes and replaced by new one with all requirements & accessories to complete the work. Ductile pipes Diametes as following:
A7: 1-A | B7: ductial pipe diameter 500 mm with all accessories | C7: m.l | D7: 150
A8: 1-B | B8: ductial pipe diameter 300 mm with all accessories | C8: m.l | D8: 90
A9: 2 | B9: Supply materials, tools and manpower, to install and test a Strainers with all works required .The work includes dismantling the old strainers and replaced by new one with all requirements & accessories to complete the work in a good condition . Strainers Diametes as following:
A10: 2-A | B10: Strainer Diameter (500) mm | C10: Ea | D10: 5
A11: 2-B | B11: Strainer Diameter (300) mm | C11: Ea | D11: 3
A12: 3 | B12: Supply and Install new Low lift horizontal pump , split- case, best origin and brand (IDEAL, Caprari, KSB, Wilo, Grundfos, or equivalant complying with required specifications in compliance sheet), stainless steel shaft & impeller of specification (Q = 900 m3/hr, H = 20 m), Speed 1500 rpm, 400 V, 50 Hz, IP 55 F CLASS,3PH Electrical motor. Contractor shall submit technical speficiations and catalogs of the pumps and will provide a supplier’s pump efficiency curve for the pump, to ensure that the pumps installed are efficient and not simply matching the requested flow rate and head. The work includes dismantling the damaged pumps and submitting them to the plant administration, proper cable feeder to connect the pumps systematically with cables using proper cable joints with all requirements to achieve a complete electrical connection, testing and successfully operation.The work & price includes providing any fittings required, pipe modification and paint all with Jotun paint. All connections needed & all accessories as to instructions of site engineer and site request. Work includes, Supply, install, connect and operate new electrical starter for each horizontal pump and all cables connections required, accessories and labors for interlock connection, protection, indicators, and fixing, in additional to all requirements to complete a good work. | C12: Ea | D12: 1 | F12: =E12*D12 -> 0
A13: 4 | B13: Supply, connect & install all (Input & Output) Gate valves of LL pump. The work includes dismantling the old valves & replaced by new one. Input gate valve with 500mm diameter & output gate valve 350mm with check-valve and flexible joint.The price include painting works using anti-rust & then oil paints and complete accessories and requirements to complete a good work | C13: Ea | D13: 1
B14: Sub-total | F14: =SUM(F7:F13) -> 0
A15: B | B15: High Lift Pump Station
B16: محطة الدفع
A17: 1 | B17: Supply and Install new High lift horizontal pump for south of Baiji , split- case, best origin and brand (IDEAL, Caprari, KSB, Wilo, Grundfos, or equivalant complying with required specifications in compliance sheet) stainless steel shaft & Bronze impeller, of specification (Q = 420 m3/h, H = 80 m), Speed 1500 rpm, 400 V, 50 Hz, IP 55 F CLASS,3PH Electrical motor. Contractor shall submit technical speficiations and with catalogs of the pumps and will provide a supplier’s pump efficiency curve for the pump, to ensure that the pumps installed are efficient and not simply matching the requested flow rate and head. The work includes dismantling the damaged pumps and submitting them to the plant administration, proper cable feeder to connect the pumps systematically with cables using proper cable joints with all requirements to achieve a complete electrical connection, testing and successfully operation.The work & price includes providing any fittings required, pipe modification and paint all with Jotun paint. All connections needed & all accessories as to instructions of site engineer and site request. Work includes, Supply, install, connect and operate new electrical starter for each horizontal pump and all cables connections required, accessories and labors for interlock connection, protection, indicators, and fixing, in additional to all requirements to complete a good work. | C17: Ea | D17: 1
A18: 2 | B18: Supply and Install new High lift horizontal pump for North of Baiji , split- case, best origin and brand (IDEAL, Caprari, KSB, Wilo, Grundfos, or equivalant complying required specifications in compliance sheet) stainless steel shaft & Bronze impeller, of specification (Q = 720 m3/h, H = 70 m), Speed 1500 rpm, 400 V, 50 Hz, IP 55 F CLASS,3PH Electrical motor. Contractor shall submit technical speficiations and with catalogs of the pumps and will provide a supplier’s pump efficiency curve for the pump, to ensure that the pumps installed are efficient and not simply matching the requested flow rate and head. The work includes dismantling the damaged pumps and submitting them to the plant administration, proper cable feeder to connect the pumps systematically with cables using proper cable joints with all requirements to achieve a complete electrical connection, testing and successfully operation.The work & price includes providing any fittings required, pipe modification and paint all with Jotun paint. All connections needed & all accessories as to instructions of site engineer and site request. Work includes, Supply, install, connect and operate new electrical starter for each horizontal pump and all cables connections required, accessories and labors for interlock connection, protection, indicators, and fixing, in additional to all requirements to complete a good work. | C18: Ea | D18: 1
A19: 3 | B19: Supply materials, tools and manpower, to replace the shock absorption reducaction Steel tank from carbon steel 6mm with all requirements to complete a good work. | C19: Ea | D19: 4
A20: 4 | B20: Supply, connect & install all (Input & Output) Gate valves of HL pumps. The work includes dismantling the old valves & replaced by new one. for 720 m3/hr pump, Input gate valve with 500mm diameter & output gate valve 400mm with check-valve and flexible joints. While for 420 m3/hr pump, Input gate valve with350mm diameter & output gate valve 250mm with check-valve and flexible jointsThe price include painting works using anti-rust & then oil paints and complete accessories and requirements to complete a good work | C20: Ea | D20: 2
B21: Sub-total | F21: =SUM(F17:F20) -> 0
A22: C | B22: Electrical works
B23: الاعمال الكهربائية
A24: 1 | B24: L.L Station
B25: محطة السحب الواطئ
A26: 1.1 | B26: LL station: Provision of materials and work to supply and install new electrical main board MDB (IP55) with three phase circuit breakers and other electrical components best quality, including; • Main circuit breaker MCCB (adjustable1250 Amp) (1 no.). • Circuit breaker (500 Amp.) for LL pumps (5 nos). • Circuit breaker (225 Amp.) for LL pumps (3 nos). • Circuit breaker (250 Amp.) for station services & lighting (1 no). • All circuits of Magnatic & Heat protection type RCCD • Residual Current Circuit breaker need to be installed for earth leakage protection. Price also includes; supply and install, digital multi-meter sets (Amp and Volt), selector switch, indicating lamps, push buttons, under/over voltage& phase failure protection with all required connection cables, bus-bar, materials and accessories such as , terminals, etc. to implement the work accurately & properly. Testing and successfully operating. Price include supply, install & operate Air-Condition Stand split unit 4 ton with complete requirements to complete a good work. Short circuit breaking capacity of MCCB shall not be less than 35 kA. | C26: LS | D26: 1
A27: 1.2 | B27: Provision of materials and work to supply, lay, extend and connect new low tension power cable feeder (Saudi, jordanian or Turkish origin) for LL station of (3x240 + 120mm2) from the main electric control station to the MDB side with all required materials & measures (trays, cover, flexible pipe, gland, terminals, clamps etc.), labors and tools to implement the work properly and neatly. | C27: ml | D27: 200
A28: 2 | B28: H.L Pump station
B29: محطة الدفع
A30: 2.1 | B30: HL station: Provision of materials and work to supply and install new electrical main board MDB (IP55) with three phase circuit breakers and other electrical components best quality, including; • Main circuit breaker MCCB (adjustable 3500 Amp) (1 no.). • Circuit breaker (1000 Amp.) for HL pumps (2 nos). • Circuit breaker (750 Amp.) for HL pumps (4 nos). • Circuit breaker (500 Amp.) for HL pumps (2 nos). • Circuit breaker (400 Amp.) for HL pumps (2 nos). • Circuit breaker (300 Amp.) for HL pumps (2 nos). • Circuit breaker (150 Amp.) for LL pumps (2 nos). • Circuit breaker (250 Amp.) for station services & lighting (1 no). • All circuits of Magnatic & Heat protection type RCCD. • Residual Current Circuit breaker need to be installed for earth leakage protection. Price also includes; supply and install, digital multi-meter sets (Amp and Volt), selector switch, indicating lamps, push buttons, under/over voltage & phase failure protection with all required connection cables, bus-bar, materials and accessories such as , terminals, etc. to implement the work accurately & properly. Testing and successfully operating. Price include supply, install & operate Air-Condition Stand split unit 4 ton with complete requirements to complete a good work. Short circuit breaking capacity of MCCB shall not be less than 35 kA. | C30: LS | D30: 1
A31: 2.2 | B31: Provision of materials and work to supply, lay, extend and connect new low tension power cable feeder (Saudi, jordanian or Turkish origin) for LL station of (3x240 + 120mm2) from the main electric control station to the MDB side with all required materials & measures (trays, cover, flexible pipe, gland, terminals, clamps etc.), labors and tools to implement the work properly and neatly. | C31: ml | D31: 200
A32: 3 | B32: Filters Station
B33: ج - محطة الفلاتر
A34: 3.1 | B34: Filter station: Provision of materials and work to supply and install new electrical main board MDB (IP55) with three phase circuit breakers and other electrical components best quality, including; • Main circuit breaker MCCB (adjustable1250 Amp) (1 no.). • Circuit breaker (250 Amp.) for filters pumps (3 nos). • Circuit breaker (150 Amp.) for filter station services (1 no). • Circuit breaker (400 Amp.) for Back-wash motors ,gates, valves and actuators (1 no). • All circuits of Magnatic & Heat protection type RCCD • Residual Current Circuit breaker need to be installed for earth leakage protection. Price also includes; supply and install, digital multi-meter sets (Amp and Volt), selector switch, indicating lamps, push buttons, under/over voltage & phase failure protection with all required connection cables, bus-bar, materials and accessories such as , terminals, etc. to implement the work accurately & properly. Testing and successfully operating. Price include supply, install & operate Air-Condition Stand split unit 4 ton with complete requirements to complete a good work. Short circuit breaking capacity of MCCB shall not be less than 35 kA. | C34: LS | D34: 1
A35: 4 | B35: Chemicals Station
B36: محطة الكيمياويات
A37: 4.1 | B37: Chemical station: Provision of materials and work to supply and install new electrical main board MDB (IP55) with three phase circuit breakers and other electrical components best quality, including; • Main circuit breaker MCCB (adjustable 750 Amp) (1 no.). • Circuit breaker (400 Amp.) for boosting pumps (2 nos). • Circuit breaker (100 Amp.) for different boosting & chemical devices & pumps (20 nos). • Circuit breaker (100 Amp.) for station services, lighting and others devices (1 no). • All circuits of Magnatic & Heat protection type RCCD • Residual Current Circuit breaker need to be installed for earth leakage protection. Price also includes; supply and install, digital multi-meter sets (Amp and Volt), selector switch, indicating lamps, push buttons, under/over voltage & phase failure protection with all required connection cables, bus-bar, materials and accessories such as , terminals, etc. to implement the work accurately & properly. Testing and successfully operating. Price include supply, install & operate Air-Condition split unit 2 ton with complete requirements to complete a good work. Short circuit breaking capacity of MCCB shall not be less than 35 kA. | C37: LS | D37: 1
A38: 5 | B38: Clays Station
B39: محطة الاطيان
A40: 5.1 | B40: Clay station: Provision of materials and work to supply and install new electrical main board MDB (IP55) with three phase circuit breakers and other electrical components best quality, including; • Main circuit breaker MCCB (adjustable 500 Amp) (1 no.). • Circuit breaker (125 Amp.) for clay scrapers motors (3 nos). • Circuit breaker (100 Amp.) for station services, lighting and others devices (1 no). • All circuits of Magnatic & Heat protection type RCCD • Residual Current Circuit breaker need to be installed for earth leakage protection. Price also includes; supply and install, digital multi-meter sets (Amp and Volt), selector switch, indicating lamps, push buttons, under/over voltage & phase failure protection with all required connection cables, bus-bar, materials and accessories such as , terminals, etc. to implement the work accurately & properly. Testing and successfully operating. Price include supply, install & operate Air-Condition split unit 2 ton with complete requirements to complete a good work. Short circuit breaking capacity of MCCB shall not be less than 35 kA. | C40: LS | D40: 1
A41: 6 | B41: Transformer station
B42: محطة المحولات
A43: 6.1 | B43: Supply , install ,connect and commission of floor mounted Electrical In-door transformer (Rated power 4000 KVA - 11.0 / 0.416 KV) , Vector Group Dyn11, Frequency 50 Hz, Cooling type ONAN best quality compliant with Iraqi MOE specifications. Work include, supplying and erecting all required accessories for floor mounting in specified transformer room nearby electric substation, (connection with the national Grid will be taken over by concerened authority). Vendor should submit, Transformer test report with technical details compliant with Iraqi MOE specifications The work includes; the required modification for the room (door, floor and ventilation openings, etc) to fit the installation requiremants, (connection with the national Grid side will be taken over by authority). Price also includes; Supply, install & connect all required electrrical and mechanical components to complete the job neatly and according to Iraqi national electricity standards. | C43: Ea | D43: 1
A44: 6.2 | B44: Provision of materials, labors, and equipment to supply, install , test and commission a brand new three 11 kV Switchboards consist of ( 11 kV incoming feeder, Two feeders for 2 MVA and 4 MVA transformers). Power connections are made between functional units within a switchboard via a single busbar. Three switchboards for 11 kV incoming feeder and two 11 kV out-going feeders with withdrawable circuit breaker 1250 A. Each functional unit combines all the components which are required to fulfil this function (detail shown in related drawing): (A). The cubicles include busbars, bushing, withdrawable parts (vacuum circuit breaker, voltage transformer), connections, earthing switch and current transformer. (B). Measuring instruments (Voltmeter, Ammeter, kWh & KVArh), protection relays (overcurrent, earth fault, under voltage, over voltage earth fault and auto-recloser), control and monitoring system (annunciator, position indicator, selector switch, push button, indication lamps ...etc.). (C). One number of Service truck to be provided. (D) Suppy, install and commission 110V DC battery bank 40Ah with suitable size of battery charger and all requirements from cables, joints ...etc.., (E) The contractor shall provide the catalogues, manuals and calculations for approval for MCSG and battery system. The contractor shouls submitted a single line diagram and details of control and protection schemes for approval from monitoring committee before manufacturing. Details about the MCSG panel are given in the attached specifications, compliance sheets and drawing. | C44: EA | D44: 1
A45: 6.3 | B45: Supply , install ,connect and commission of Electrical In-door transformer (Rated power 2000 KVA - 11.0 / 0.416 KV) best quality consist of following components: Transformer, Rated power 2000 kVA, Voltage 11000 V /416 V, Vector Group Dyn11, Frequency 50 Hz, Cooling type ONAN Vendor should submit, Transformer test report with technical details compliant with Iraqi MOE specifications, supplying and erecting all required accessories for floor mounting in specified transformer room nearby LL station, (connection with the national Grid will be taken over by concerened authority). Work & price includes casting of reinfoeced concrete base using two layers of mesh BRC gage 63 with concrete strength 20 Mpa. Then construct pre-fabricated room to keep transformer with dimensions 5x5m using Sandwitch panels and all requirements to complete a good work. | C45: EA | D45: 1
A46: 6.4 | B46: Supply materials, tools and manpower to install main control board includes, two 5000 Amp main circuit breaker (motrize), Contactors, Circuits for lighting and service, Voltage and Amp gauge and bazbar, inside iron board 2mm thikness and painted by heat paint. Each Bazbar has circuit breaker type (RCCD). the price include put the interior wire conection inside bazbar with all gauge all required to make job complete. | C46: EA | D46: 1
B47: Sub-total | F47: =SUM(F26:F46) -> 0
A48: D | B48: Sedimentation Tanks works
B49: اعمال احواض الترسيب
A50: 1 | B50: Supply materials, tools and manpower to maintian and replace all damage parts for sidimentation tank capacity 1000 m3 with all work requirements to make job complete as below:
A51: 1-A | B51: Supply and install new 4 sets ( front pair & rear pair) heavy duty rubber wheel (Dia 40 cm, width 10 cm) fit for the existing platform movement, the circular rail and the tank requirements with all electrical connections (cable feeder, complete electrical control panel, etc.), testing and operating successfully | C51: Ea | D51: 3
A52: 1-B | B52: Supply and Install circular serrated plate of sedimintation tank using stainless steel plate, thikness 3mm and width 30 cm best quality. Work includes dismantling plate & replace by new one.S.steel V-notches at the inner circumference of (3) mm thick. with all requirements (welding, bolts, support, etc.), painting the inner surface with 3 Lys of food grade epoxy paint for the immersed parts and in touch with water and oil paint for the steel bridge completely after adequate prime layers. | C52: ml | D52: 1200
A53: 1-C | B53: Provision of materials, tools, and labor to clean out and wash out the circulated concrete tanks by removal all the accumulative sludge and heavy stacks at (wall & bottom), unclogging the drain, delivery & over-flow openings and pipes. | C53: Ea | D53: 3
A54: 2 | B54: Provision of materials and work to supply and install new motor Scraper of (3 kW), (6.5 Amp), with gearbox capacity (1500 r.p.m) of best origin and (S.steel shaft & propeller) fit to the tank depth and standard requirements. The work includes; required steel support, supply and extend new cable of proper (size and length), new (integrated control panel of best origin components), protection shed, wiring and all electrical connections to complete the job properly, testing and operating successfully. | C54: Ea | D54: 3
A55: 3 | B55: Provision of materials and work to supply and install new flash mixer motor of (2.2) kW, (4.8 Amp) with gearbox capacity (250 r.p.m) of best origin and (S.steel shaft & propeller) fit to the tank depth and standard requirements.The work includes; required steel support, supply and extend new cable of proper (size and length), new (integrated control panel of best origin components), protection shed, wiring and all electrical connections to complete the job properly, testing and operating successfully. | C55: Ea | D55: 6
A56: 4 | B56: Provision of materials and work to supply and install newnew flocculator (1.5) kW, (3.7 Amp) with gearbox capacity (80-120 r.p.m) of best origin and (S.steel shaft & propeller) fit to the tank depth and standard requirements.The work includes; required steel support, supply and extend new cable of proper (size and length), new (integrated control panel of best origin components), protection shed, wiring and all electrical connections to complete the job properly, testing and operating successfully. | C56: Ea | D56: 3
A57: 5 | B57: Supply and Install brand new , best origin, Clay pump (240 m3 / hr × 7 m) electric motor with a new starter includes (boycotted the session, contactor ,overload ,Timer ,Cage lights , lamps and cables). The main control-panel (Soft Star) with processing electric motors sensors thermal and mechanics sensors contain circuit breaker with suit asbuilt Cable connect the pump, starters and main control board. the price include supply spear parts for the pump ( Boliberns, shafts, and elbow) with all required connections to implement the job neatly. Testing and successfully operating and all requirements to complete a good work. According to the enclosed technical data sheet. | C57: Ea | D57: 2
A58: 6 | B58: Provision of materials, tools, labor and machine to repair and refunction the circular clarifier steel structure (the platform & scraper) to ensure complete restoration as original design. Work includes; reassemble the steel structure (some dismantled parts existed on site), replace, modify and add any missing / defective parts using appropriate steel sections fit the settling process requirements, supply and install mud - scraping rubber with all requirements (welding, bolts, support, etc.), painting the inner surface with 3 Lys of food grade epoxy paint for the immersed parts and in touch with water and oil paint for the steel bridge completely after adequate prime layers. | C58: Ea | D58: 3
A59: 7 | B59: Provision of materials, tools, labor and machine to replace all water pipes, valves and elbows for water outlet part in sedimintation tank with all requirements to complete a good work. | C59: LS | D59: 1
A60: 8 | B60: Sedimintation Tanks: Provision of materials and work to supply and install new electrical main board MDB (IP55) with circuit breakers and other electrical components best quality, including; • Main circuit breaker MCCB (adjustable 250 Amp) (1 no.). • Starters for clay scrapers motors, Flash mixers, and flocculator (12 nos). • Supply & installation of 4 Nos. of 3 phase MCCB 60A. Short circuit breaking capacity of MCCB shall not be less than 35 kA. | C60: LS | D60: 1
B61: Sub-total | F61: =SUM(F50:F60) -> 0
A62: E | B62: Chemical works
B63: اعمال الكيمياويات
A64: 1 | B64: Provision labors, planet, equipment, and materials to supply and install new (20) kg/h chlorinator (ALLDOS, Grunfos device or equivalent of western origin), with injector and copper piping work. The work includes; manufacturing proper frame for installation, make the required preparation to install copper & P.V.C. pipes with all fittings and connections. Testing, and operating the chlorinator functionally and successfully.The price include re-install required piping connections for 300m distant from Chloinator station to Sedimintation tank with all accessories & requirements to complete a good work. | C64: Ea | D64: 2
A65: 2 | B65: Supply and install new booster pumps of capacity (Q = 5 m3/h, H = 110m), LOWARA, Grundfos or equivalent of western origin. The work includes supply and install new suitable G.Steel & PVC pipes of (40/50) mm with fittings as per required, ball valve & brass strainer, electrical connections & flexible hose; new suitable electrical cable (length & size), proper steel base & providing all required modifications, materials and accessories to implement the work accurately, properly and neatly, testing and successfully operating. | C65: Ea | D65: 2
A66: 3 | B66: Provision labors, tools, equipment, and materials to supply and install new Alum dosing pump, western origin, (INJECTA, Grundfos, Alldos brand or equivalent )of capacity (Q= 1000 l/hr, 5-10 bar). The work includes; Install new alum dosing pump on manufactured steel frame with all required modification, supply and install proper cable length & size fit to the equipment capacity from the main board to the alum dosing with all required electrical connections. Testing and operating the pump to insure proper performance. The price include re-install required piping connections for 200m distant from Alum station to flash mixer with all accessories & requirements to complete a good work. | C66: Ea | D66: 2
A67: 4 | B67: Supply and install alum mixer of capacity (3.0 kW, 1420 rpm, stainless steel shaft, and propeller), with gearbox brand new of western origin, and suitable cable (length & size). Work includes; supply and install new mixer on new tank with all requirements to complete the job perfectly (steel frame, oil paint, electrical connection, etc.). Testing and operating the mixer to insure proper performance. | C67: Ea | D67: 2
A68: 5 | B68: Supply materials, tools and manpower to clean out, wash out and maintain allum mixing tank 48m3 with painting inside by anti-rust paints & outside by suitable best quality paints. Work include supply and install Allum powder boxes (Wood or anti-rust Steel) dimensions (4x1x1.5) m painting the inner face with (2Lys) of epoxy paint and then with (3 lys) of grade food paints. Work include all required modification, piping connections, and accessories with all requirements to complete a good work. | C68: Ea | D68: 2
B69: Sub-total | F69: =SUM(F64:F68) -> 0
A70: F | B70: Generators
B71: المولدات
A72: 1 | B72: Supply, install & operate new Sound proof electrical Diesel generator with prime rated power 2000 kVA, 1500 rpm/50 Hz/400 Volts (Silent Style) best origin and compliance with attached specifications and technical data sheet with a complete work requirements. The work includes transportation, loading, unloading to site, dismantle and reinstall the existing sunshade using corrugated galvanized steel sheets, all required electrical cabling connections, operational materials e.g. batteries, oil, filters, etc., with testing and operating, according to the technical specification attached.The Price includes supply and connect Change Over Switch with minimum 3200 A rating, with complete connection and commissioning reinforced cable (120+240x3) mm2 requirements to maintain perfect operation. All Necessary accessories needs to Complete all electrical works. | C72: Ea | D72: 1
B73: Sub-total | F73: =SUM(F72) -> 0
A74: G | B74: Accumulation Tank
B75: خزان التجميع ( الخزان لارضي)
A76: 1 | B76: Provision of materials, tools, and labor to clean out and wash the accumulative concrete tank (60x60 m) with its associated chambers by removal all the accumulative sludge and heavy stacks at (wall & bottom), unclogging the drain, delivery & over-flow openings and pipes. Work includes; full restoration & re-operating the whole controlling system of different (types and sizes) by replacing the missing / defective parts with all requirements to complete a perfect work. | C76: LS | D76: 1
A77: 2 | B77: Provision of materials, tools, and labor to replace the existing valves 400mm of accumulation tank by new one, full restoration & re-operating the whole controlling system of different (types and sizes) by replacing the missing / defective parts with all requirements to complete a perfect work. | C77: Ea | D77: 10
A78: 3 | B78: Provision of materials, tools, and labor to replace the existing metal grid of 16 ventilation openings with all requirements to complete a good work. | C78: Ea | D78: 16
B79: Sub-total | F79: =SUM(F76:F78) -> 0
B80: Total price of Rehabilitation Works in US Dollara | F80: =F79+F73+F69+F61+F47+F21+F14 -> 0
